{"text_format":"1","workbook":"xlsx","n_sheets":8,"sheets":["Prompt","C100","C200","C300","C400","C500","C600","Enviar"],"not_rendered":{"charts":0,"images":6,"macros":1,"external_links":0,"defined_names":1,"comments":1,"pivot_tables":0},"unopened":[],"bounds":{"document_bytes":16777216,"sheet_cells":100000,"rows_first":2000,"rows_last":500,"rows_between":2000,"halvings":0,"cell_chars":16384,"cell_head_chars":4096},"cells_cut":0,"cells_raw":0,"read":"whole","date_system":"1900"}

{"sheet":"Prompt","index":0,"n_rows":79,"n_cols":4,"rows_kept":79,"cut":false,"hidden":true,"merged":[[1,3,2,6],[4,1,6,8],[43,1,44,8],[78,1,79,8],[9,1,10,8]]}
[]
[null,null,null,"¡ATENCIÓN!"]
[]
[]
[null,"Para hacer uso de las funcionalidades de esta Cédula Electrónica debe habilitar macros"]
[]
[]
[]
[]
[null,"Si utiliza Excel 2013 siga el siguiente procedimiento:"]
[]
[]
[]
[]
[]
[]
[]
[]
[]
[]
[]
[]
[]
[]
[]
[]
[]
[]
[]
[]
[]
[]
[]
[]
[]
[]
[]
[]
[]
[]
[]
[]
[]
[null,"Si utiliza Excel 2007 siga el siguiente procedimiento:"]
[]
[]
[]
[]
[]
[]
[]
[]
[]
[]
[]
[]
[]
[]
[]
[]
[]
[]
[]
[]
[]
[]
[]
[]
[]
[]
[]
[]
[]
[]
[]
[]
[]
[]
[null,"Si utiliza Excel 2000, 2002, 2003 siga el siguiente procedimiento:"]

{"sheet":"C100","index":1,"n_rows":174,"n_cols":23,"rows_kept":174,"cut":false,"hidden":false,"merged":[[168,5,168,9],[158,16,158,21],[23,1,23,22],[2,19,4,21],[1,19,1,21],[30,5,30,13],[30,16,30,20],[28,5,28,20],[26,19,26,20],[26,5,26,7],[39,1,39,22],[50,5,50,10],[156,5,156,9],[72,14,72,20],[120,18,120,21],[132,16,132,20],[123,5,123,10],[107,5,107,9],[108,5,108,9],[73,21,74,21],[75,21,76,21],[77,21,78,21],[79,21,80,21],[82,21,83,21],[84,21,85,21],[86,21,87,21],[91,21,92,21]]}
[]
[null,null,null,null,null,"CENSO EDUCATIVO 2023",null,null,null,null,null,null,null,null,null,null,null,null,null,"CÉDULA"]
[null,null,null,null,null,"EDUCACIÓN BÁSICA ESPECIAL",null,null,null,null,null,null,null,null,null,null,null,null,null,"8AP"]
[null,null,null,null,null,"PRIMARIA"]
[null,"Versión :","2 - (32 y 64 bits)"]
[null,"INSTRUCCIONES DEL FORMATO ELECTRÓNICO "]
[]
[]
[]
[]
[]
[]
[]
[]
[]
[]
[]
[]
[]
[]
[]
[]
[]
[null,"IDENTIFICACIÓN DEL SERVICIO EDUCATIVO"]
[]
[]
[null,"1. CÓDIGO MODULAR :",null,null,null,null,null,null,null,null,null,null,null,null,null,null,null,"2. CÓDIGO DE LOCAL EDUCATIVO :"]
[]
[null,"3. NOMBRE DEL SERVICIO :"]
[]
[null,"4. DISTRITO :",null,null,null,null,null,null,null,null,null,null,null,null,null,"LOCALIDAD :"]
[]
[]
[]
[]
[]
[null,"GESTIÓN DE LA INSTITUCIÓN EDUCATIVA :",null,null,null,null,null,null,null," 1 - Pública de gestión directa",null,null,null,null," 2 - Pública de gestión privada",null,null,null,null," 3 - Privada"]
[]
[]
[null,"100. CARACTERÍSTICAS DEL SERVICIO EDUCATIVO"]
[]
[null,"101. EN LOS ÚLTIMOS TRES MESES, ¿QUÉ SERVICIOS SE OFRECIERON EN ESTE",null,null,null,null,null,null,null,null,null,null,"104. EL SERVICIO/NIVEL EDUCATIVO ¿PLANIFICÓ ACTIVIDADES EN EL LOS"]
[null,null,"SERVICIO/NIVEL EDUCATIVO ?",null,null,null,null,null,null,null,null,null,null,"DOCUMENTOS DE GESTIÓN?"]
[null,null,"Marque con una “X” una o más opciones"]
[]
[null,null,null,null,"Qali Warma",null,null,null,null,null,null,null,null,null,null,null,null,"Marque con un aspa “X” uno o más casilleros"]
[null,null,null,null,"Cuna más",null,null,null,null,null,null,null,null,"Sí"]
[null,null,null,null,"Vacunación",null,null,null,null,null,null,null,null,null,null,null,null,null,"","Tutoría"]
[null,null,null,null,"Control de Crecimiento y Desarrollo",null,null,null,null,null,null,null,null,null,null,null,null,null,"","Trabajo con familias"]
[null,null,null,null,"Despistaje de anemia",null,null,null,null,null,null,null,null,"No  ",null,null,null,null,"","Convivencias"]
[null,null,null,null,"Otro"]
[null,null,null,null,"Ninguno"]
[]
[null,"102.  ¿EL SERVICIO/NIVEL EDUCATIVO CUENTA CON DOCUMENTO DE GESTIÓN?",null,null,null,null,null,null,null,null,null,null,"105. EL SERVICIO/NIVEL EDUCATIVO ¿CUENTA CON UN PLAN DE TUTORÍA Y "]
[null,null,null,null,null,null,null,null,null,null,null,null,null,"ORIENTACIÓN EDUCATIVA (PLAN DE TUTORÍA Y TRABAJO CON FAMILIAS)?"]
[null,null,"Sí",null,null,null,"No  "]
[]
[null,"103. ¿CON QUÉ DOCUMENTOS DE GESTIÓN CUENTA EL SERVICIO/NIVEL",null,null,null,null,null,null,null,null,null,null,null,"Sí",null,null,null,"No  "]
[null,null,"EDUCATIVO, ANTES DEL INICIO DEL AÑO ESCOLAR?"]
[]
[null,null,null,null,"Proyecto educativo institucional (PEI)",null,null,null,null,null,null,null,"106. ¿EL SERVICIO/NIVEL EDUCATIVO CUENTA CON NORMAS DE CONVIVENCIA?"]
[null,null,null,null,"Plan anual de trabajo (PAT)"]
[null,null,null,null,"Proyecto curricular de la Institución Educativa (PCI)"]
[null,null,null,null,"Reglamento interno (RI)",null,null,null,null,null,null,null,null,"Sí",null,null,null,"No  "]
[]
[]
[null,"ACOMPAÑAMIENTO Y SOPORTE PEDAGÓGICO"]
[null,"107. USTED SEÑOR(A) DIRECTOR(A), ¿TIENE AULA A CARGO?",null,null,null,null,null,null,null,null,null,null,"109. ¿CUÁLES DE LAS SIGUIENTES ACCIONES HA REALIZADO EL ESPECIALISTA"]
[null,null,null,null,null,null,null,null,null,null,null,null,null,"PEDAGÓGICO AL MOMENTO DE BRINDAR LA ASISTENCIA TÉCNICA AL"]
[null,null,"Sí",null,null,null," No  ",null,null,null,null,null,null,"SERVICIO/NIVEL EDUCATIVO?",null,null,null,null,null,null,null,null,"SI"]
[null,null,null,null,null,null,null,null,null,null,null,null,null,null,null,null,null,null,null,null,null,null,"NO"]
[null,null,null,null,null,null,null,null,null,null,null,null,null,"Marque con una “X” en “Si” o “No” según corresponda en cada acción"]
[null,null,null,null,null,null,null,null,null,null,null,null,null,"NRO.","ACCIONES",null,null,null,null,null,null," SI - NO"]
[null,null,"¿Cuál de las siguientes afirmaciones considera que expresa mejor",null,null,null,null,null,null,null,null,null,{"$f":"COUNTIF(V74:V93,\"NO\")","v":0},1,"Pregunto sobre las necesidades y demandas pedagógicas del"]
[null,null,"su opinión respecto a tener asignada un aula a su cargo?",null,null,null,null,null,null,null,null,null,null,null,"servicio/nivel educativo"]
[null,null,"Marque con una “X”, una opción",null,null,null,null,null,null,null,null,null,null,2,"Observó alguna sesión o actividades de aprendizaje, ya sea de"]
[null,null,null,null,null,null,null,null,null,null,null,null,null,null,"manera presencial o virtual/remota (por lo menos una vez)"]
[null,null,null,"","Es beneficiosa para el cumplimiento de mis funciones",null,null,null,null,null,null,null,null,3,"Sostuvó un clima de confianza y proximidad durante sus acciones"]
[null,null,null,"","Es indiferente para el cumplimiento de mis funciones",null,null,null,null,null,null,null,null,null,"de asistencia técnica con este servicio/ nivel educativo"]
[null,null,null,"","Es perjudicial para el cumplimiento de mis funciones",null,null,null,null,null,null,null,null,4,"Generó algún espacio para que el director(a) del servicio/nivel"]
[null,null,null,null,null,null,null,null,null,null,null,null,null,null,"educativo autoevalúe su práctica"]
[null,"108. DESDE EL INICIO DEL AÑO LECTIVO HASTA LA FECHA DE REPORTE DEL CENSO",null,null,null,null,null,null,null,null,null,null,null,5,"Escuchó y respondió las dudas y consultas realizadas por usted"]
[null,null,"EDUCATIVO EL SERVICIO/NIVEL EDUCATIVO, ¿HA RECIBIDO COMUNICACIÓN O",null,null,null,null,null,null,null,null,null,null,6,"Las orientaciones brindadas atendieron las necesidades y"]
[null,null,"PARTICIPACIÓN PRESENCIAL O VIRTUAL DEL ESPECIALISTA PEDAGÓGICO",null,null,null,null,null,null,null,null,null,null,null,"demandas señaladas"]
[null,null,"DE LA UGEL, CON LA FINALIDAD DE BRINDAR ASISTENCIA TÉCNICA?",null,null,null,null,null,null,null,null,null,null,7,"Brindó orientaciones para la mejora de las prácticas pedagógicas"]
[null,null,null,null,null,null,null,null,null,null,null,null,null,null,"y de gestión acorde al enfoque por competencias."]
[null,null,"Sí",null,null,"¿Cuántas veces?",null,null,null,null,null,null,null,8,"Sugirió estrategias pedagógicas contextualizadas para mejorar las"]
[null,null,null,null,null,null,"Presencial:",null,null,null,null,null,null,null,"prácticas docentes"]
[null,null,null,null,null,null,"Virtual/Remota:",null,null,null,null,null,null,9,"Dio a conocer las fortalezas del servicio / nivel educativo"]
[null,null,null,null,null,null,null,null,null,null,null,null,null,10,"Durante las orientaciones utiliza alguna herramienta curricular"]
[null,null," No  ",null,null,"Pase a la pregunta 110.",null,null,null,null,null,null,null,11,"Se asumieron compromisos y/o acuerdos para la mejora"]
[null,null,null,null,null,null,null,null,null,null,null,null,null,12,"Brindó orientaciones y/o acompañamientos periódicos para la"]
[null,null,null,null,null,null,null,null,null,null,null,null,null,null,"Implementación de la metodología CAP en la IE."]
[null,null,null,null,null,null,null,null,null,null,null,null,null,null,null,null,null,null,null,null,null,{"$f":"COUNTIF(V74:V93,\"SI\")+COUNTIF(V74:V93,\"NO\")","v":0}]
[]
[]
[null,"110. DESDE EL INICIO DEL AÑO HASTA LA FECHA DEL REPORTE DEL CENSO",null,null,null,null,null,null,null,null,null,null,"112. DURANTE EL AÑO, EN PROMEDIO, ¿CUÁNTAS HORAS POR SEMANA Y REUNIONES"]
[null,null,"EDUCATIVO 2023, EL SERVICIO/NIVEL EDUCATIVO, ¿HA RECIBIDO ALGÚN ",null,null,null,null,null,null,null,null,null,null,"POR MES DE TRABAJO COLEGIADO O TRANSDISCIPLINARIO REALIZÓ CON EL"]
[null,null,"TIPO DE ACOMPAÑAMIENTO DIRIGIDO AL DIRECTIVO?",null,null,null,null,null,null,null,null,null,null,"PERSONAL DE ESTE SERVICIO/NIVEL EDUCATIVO?"]
[]
[null,null,"Sí",null,null,null," No  ",null,null,"Pase a la pregunta 111",null,null,null,"Promedio de reuniones por semana con docentes"]
[]
[null,null,null,null,"¿Que Institución le brindó el acompañamiento?",null,null,null,null,null,null,null,null,"Promedio de reuniones por semana con no docentes"]
[null,null,null,null,"Marque con una “X” una o más opciones"]
[null,null,null,null,null,null,null,null,null,null,null,null,"113. ¿DURANTE LOS ÚLTIMOS 5 AÑOS, EL PERSONAL DE ESTE SERVICIO/NIVEL"]
[null,null,null,null,"DRE",null,null,null,null,null,null,null,null,"EDUCATIVO (YA SEA PERSONAL DIRECTIVO/JERARQUICO, PERSONAL DOCENTE,"]
[null,null,null,null,"UGEL",null,null,null,null,null,null,null,null,"AUXILIARES O PERSONAL ADMINISTRATIVO), HA RECIBIDO CAPACITACIÓN EN "]
[null,null,null,null,"MINEDU",null,null,null,null,null,null,null,null,"TEMAS DE EDUCACIÓN INCLUSIVA O ATENCIÓN A LA DIVERSIDAD DE PARTE DE"]
[null,null,null,null,"OTROS",null,null,null,null,null,null,null,null,"ESPECIALISTAS DE DRE/GRE Y/O UGEL, O ALGUNA OTRA INSTITUCIÓN?"]
[]
[null,null,null,null,null,null,null,null,null,null,null,null,null,"Sí",null,null,null,"No"]
[null,null,"“Sólo si marco DRE o UGEL”"]
[null,null,"¿Sobre qué temas recibió acompañamiento como director por parte de la DRE/UGEL?",null,null,null,null,null,null,null,null,null,null,null,null,"¿Qué instancia o institución brindó la capacitación?"]
[null,null,"Marque con una “X”, una o más opciones",null,null,null,null,null,null,null,null,null,null,null,null,"Marque con una “X”, una o más opciones"]
[null,null,null,null,null,null,null,null,null,null,null,null,null,null,null,null,null,"MINEDU"]
[null,null,null,null,"Liderazgo directivo",null,null,null,null,null,null,null,null,null,null,null,null,"DRE/GRE"]
[null,null,null,null,"Temas administrativos",null,null,null,null,null,null,null,null,null,null,null,null,"UGEL"]
[null,null,null,null,"Temas estratégicos",null,null,null,null,null,null,null,null,null,null,null,null,"Organizaciones sin fines de lucro/ONG"]
[null,null,null,null,"Temas pedagógicos",null,null,null,null,null,null,null,null,null,null,null,null,"Entidad privada, como auspicio"]
[null,null,null,null,"Temas comunitarios",null,null,null,null,null,null,null,null,null,null,null,null,"Inversión propia"]
[null,null,null,null,"Temas sobre implementación de las CAP",null,null,null,null,null,null,null,null,null,null,null,null,"Otro"]
[null,null,null,null,"Temas de SIAGIE"]
[null,null,null,null,"Temas del Censo Educativo",null,null,null,null,null,null,null,"114. ¿QUÉ ESTRATEGIAS FORMATIVAS VIRTUALES PRIORIZARÍA SOBRE TEMAS"]
[null,null,null,null,"Otros",null,null,null,null,null,null,null,null,"DE EDUCACIÓN INCLUSIVA O ATENCIÓN A LA DIVERSIDAD?"]
[null,null,null,null,null,null,null,null,null,null,null,null,null,"Marque con una “X”, una o más opciones"]
[null,"111. DESDE EL INICIO DEL AÑO LECTIVO HASTA LA FECHA DE REPORTE DEL CENSO"]
[null,null,"EDUCATIVO EL SERVICIO/NIVEL EDUCATIVO, ¿HA REALIZADO EL MONITOREO ",null,null,null,null,null,null,null,null,null,null,null,"Curso virtual tutorado"]
[null,null,"A LA PRÁCTICA PEDAGÓGICA DE LOS DOCENTES?",null,null,null,null,null,null,null,null,null,null,null,"Curso virtual autoformativo"]
[null,null,null,null,null,null,null,null,null,null,null,null,null,null,"Grupo o círculo de interaprendizaje"]
[null,null," Sí",null,null,null," No  ",null,null,"Pase a la pregunta 112",null,null,null,null,"Comunidades profesionales de apendizaje"]
[null,null,null,null,null,null,null,null,null,null,null,null,null,null,"Asesoría personalizada"]
[null,null,null,null,null,null,null,null,null,null,null,null,null,null,"Pasantia"]
[null,null,null,"¿A cuántos",null,"Marque con una “X” una opción",null,null,null,null,null,null,null,null,"Otros"]
[null,null,null,"docentes?",null,null,"Todos los docentes"]
[null,null,null,null,null,null,"Más del 50% de docentes",null,null,null,null,null,"115. EN EL PRESENTE AÑO, EL PERSONAL DIRECTIVO DE ESTE SERVICIO/NIVEL"]
[null,null,null,null,null,null,"Menos del 50% de docentes",null,null,null,null,null,null,"EDUCATIVO ¿BRINDA SOPORTE Y APOYO A LOS PROFESIONALES DOCENTES Y NO"]
[null,null,null,null,null,null,null,null,null,null,null,null,null,"DOCENTES EN TORNO A SU DESEMPEÑO EN EL MARCO DEL ACOMPAÑAMIENTO"]
[null,null,null,null,"¿Con qué frecuencia monitorea a cada docente",null,null,null,null,null,null,null,null,"PEDAGÓGICO Y ESPACIOS DE TRABAJO COLEGIADO?"]
[null,null,null,null,"durante el año escolar?"]
[]
[null,null,null,null,null,null,"Al menos 1 vez al año",null,null,null,null,null,null,"Sí",null,null,null," No  ",null,null,"Pase a la pregunta 117."]
[null,null,null,null,null,null,"2 veces al año"]
[null,null,null,null,null,null,"3 vces al año"]
[null,null,null,null,null,null,"4 veces 2 veces al año"]
[]
[]
[null,"116. ¿QUÉ TEMAS HAN SIDO ABORDADOS MAYORITARIAMENTE POR EL EQUIPO",null,null,null,null,null,null,null,null,null,null,"118. EL SERVICIO/NIVEL EDUCATIVO, ¿REALIZA ACTIVIDADES CON FAMILIAS Y"]
[null,null,"DIRECTIVO DURANTE LAS SESIONES DE SOPORTE Y APOYO A LOS DOCENTES EN EL",null,null,null,null,null,null,null,null,null,null,"COMUNIDAD QUE AYUDEN A LA PROMOCIÓN DE UN AMBIENTE INSTITUCIONAL"]
[null,null,"MARCO DEL ACOMPAÑAMIENTO PEDAGÓGICO Y ESPACIOS DE TRABAJO COLEGIADO?",null,null,null,null,null,null,null,null,null,null,"FAVORABLE PARA LA ATENCIÓN DE LA DIVERSIDAD?"]
[null,null,"Marque con una “X”, una o más opciones"]
[null,null,null,null,null,null,null,null,null,null,null,null,null,"Sí",null,null,null," No  ",null,null,"Pase a la pregunta 120."]
[null,null,null,"Planificación curricular"]
[null,null,null,"Conducción de los aprendizajes",null,null,null,null,null,null,null,null,null,null,null,"¿Qué actividades realiza?"]
[null,null,null,"Como brindar acompañamiento socioafectivo y cognitivo"]
[null,null,null,"Uso de los recursos y materiales educativos para atender la diversidad",null,null,null,null,null,null,null,null,null,null,null,"Acompañamiento en el proceso de aprendizaje"]
[null,null,null,"Fortalecimiento del uso de TIC",null,null,null,null,null,null,null,null,null,null,null,"Actividades que fortalecen las competencias parentales"]
[null,null,null,"Otros temas",null,null,null,null,null,null,null,null,null,null,null,"Vínculos afectivos con hijos e hijas"]
[null,null,null,null,null,null,null,null,null,null,null,null,null,null,null,"Jornadas con madres y padres"]
[null,null,null,null,null,null,null,null,null,null,null,null,null,null,null,"Otros"]
[]
[null,"117. EL SERVICIO/NIVEL EDUCATIVO, ¿DESARROLLA LAS SIGUIENTES ESTRATEGIAS",null,null,null,null,null,null,null,null,null,null,"119. DE LAS ACTIVIDADES QUE REALIZA CON FAMILIAS Y COMUNIDAD, ¿POR LO"]
[null,null,"DE ACOMPAÑAMIENTO?",null,null,null,null,null,null,null,null,null,null,"MENOS UNA DE ELLAS TIENE COMO EJE PRINCIPAL LA EDUCACIÓN SEXUAL "]
[null,null,null,null,null,null,null,null,null,null,null,null,null,"INTEGRAL (ESI)?"]
[null,null,null,null,null,null,null,null,"¿Cuántos?"]
[null,null,null,null,null,null,null,null,null,"de 1 a 4 por área",null,null,null,"Sí",null,null,null,"No"]
[null,null,null,"Visita en aula",null,null,null,null,null,"de 4 a 8 por área"]
[null,null,null,"Grupos de Interaprendizaje (GIA)",null,null,null,null,null,"Más de 8 por área",null,null,"120. ¿HA VISITADO EL PORTAL WEB PARA DIRECTIVOS EN LOS ÚLTIMOS TRES MESES?"]
[null,null,null,"Talleres"]
[null,null,null,"Otros",null,null,null,null,null,null,null,null,null,"Sí",null,null,null,"No"]
[]
[null,null,null,null,null,null,null,null,null,null,null,null,null,null,null,"¿La información encontrada en el portal web para direc vos "]
[null,null,null,null,null,null,null,null,null,null,null,null,null,null,null,"le resultó de utilidad?"]
[]
[null,null,null,null,null,null,null,null,null,null,null,null,null,null,null,"Sí   ",null,null,"No  "]

{"sheet":"C200","index":2,"n_rows":108,"n_cols":30,"rows_kept":108,"cut":false,"hidden":false,"merged":[[11,28,12,29],[28,2,28,3],[21,2,21,3],[25,2,25,3],[11,24,12,25],[18,2,18,3],[19,2,19,3],[23,2,23,3],[24,2,24,3],[20,2,20,3],[26,2,26,3],[22,2,22,3],[27,2,27,3],[11,16,12,17],[10,2,13,3],[12,10,12,11],[11,26,12,27],[11,6,11,7],[11,8,11,11],[17,2,17,3],[15,2,15,3],[16,2,16,3],[12,12,12,13],[11,12,11,15],[12,8,12,9],[12,6,12,7],[12,14,12,15],[34,21,34,22],[34,17,34,18],[33,9,34,10],[34,11,34,12],[34,13,34,14],[34,15,34,16],[34,19,34,20],[29,2,29,3],[72,2,74,8],[53,2,55,8],[91,5,92,6],[101,10,101,15],[93,5,93,6],[94,5,94,6],[91,7,91,12],[95,5,95,6],[72,9,73,10],[53,11,53,16],[70,3,70,16],[51,3,51,16],[99,6,100,7],[99,3,100,5],[31,3,31,16],[107,6,107,7],[102,6,102,7],[101,6,101,7],[103,6,103,7],[104,6,104,7],[105,6,105,7],[106,6,106,7],[102,10,105,15],[73,13,73,14],[73,15,73,16],[54,11,54,12],[54,13,54,14],[54,15,54,16],[8,3,8,16],[1,5,1,19],[2,5,2,19],[11,18,11,23],[12,18,12,19],[12,20,12,21],[12,22,12,23],[10,4,12,5],[91,2,92,4],[33,2,35,8],[93,2,93,4],[53,9,54,10],[72,11,72,16],[73,11,73,12]]}
[]
[null,null,null,null,null,"CENSO EDUCATIVO 2023"]
[null,null,null,null,null,"MATRÍCULA, DOCENTES Y RECURSOS"]
[]
[]
[]
[null,null,"200. MATRÍCULA Y SECCIONES"]
[]
[null,null,201,"MATRÍCULA POR EDAD Y SEXO, SEGÚN TIPO DE DISCAPACIDAD U OTRA CONDICIÓN"]
[]
[null,null,"Edad en años cumplidos al 31-03-2023",null,"TOTAL",null,"TIPO DE DISCAPACIDAD U OTRA CONDICIÓN"]
[null,null,null,null,null,null,"DISCAPACIDAD INTELECTUAL",null,"DISCAPACIDAD AUDITIVA",null,null,null,"DISCAPACIDAD VISUAL",null,null,null,"DISCAPACIDAD FÍSICA O MOTORA",null,"TRANSTORNO DEL ESPECTRO AUTISTA (TEA)",null,null,null,null,null,"SORDO CEGUERA",null,"MULTIDIS- CAPACIDAD\n(MDE)",null,"OTRA DISCAPACIDAD U OTRA CONDICIÓN"]
[null,null,null,null,null,null,"Severa",null,"Hipoacusia",null,"Sordera",null,"Baja Visión",null,"Ceguera",null,null,null,"Requiere de apoyo (1)",null,"Requiere de apoyo notable (2)",null,"Requiere de apoyo muy notable (3)"]
[null,null,null,null,"H","M","H","M","H","M","H","M","H","M","H","M","H","M","H","M","H","M","H","M","H","M","H","M","H","M"]
["00",null,"TOTAL",null,{"$f":"SUM(E16:E30)","v":0},0,0,0,0,0,0,0,0,0,0,0,{"$f":"SUM(Q16:Q30)","v":0},{"$f":"SUM(R16:R30)","v":0},{"$f":"SUM(S16:S30)","v":0},{"$f":"SUM(T16:T30)","v":0},{"$f":"SUM(U16:U30)","v":0},0,0,0,{"$f":"SUM(Y16:Y30)","v":0},0,0,0,0,0]
["06",null,6,null,{"$f":"G16+I16+K16+M16+O16+Q16+S16+U16+W16+Y16+AA16+AC16","v":0},{"$f":"H16+J16+L16+N16+P16+R16+T16+V16+X16+Z16+AB16+AD16","v":0}]
["07",null,7,null,{"$f":"G17+I17+K17+M17+O17+Q17+S17+U17+W17+Y17+AA17+AC17","v":0},{"$f":"H17+J17+L17+N17+P17+R17+T17+V17+X17+Z17+AB17+AD17","v":0}]
["08",null,8,null,{"$f":"G18+I18+K18+M18+O18+Q18+S18+U18+W18+Y18+AA18+AC18","v":0},{"$f":"H18+J18+L18+N18+P18+R18+T18+V18+X18+Z18+AB18+AD18","v":0}]
["09",null,9,null,0,0]
["10",null,10,null,0,0]
["11",null,11,null,0,0]
["12",null,12,null,0,0]
["13",null,13,null,0,0]
["14",null,14,null,0,0]
["15",null,15,null,0,0]
["16",null,16,null,0,0]
["17",null,17,null,0,0]
["18",null,18,null,0,0]
["19",null,19,null,0,0]
["20",null,20,null,0,0]
[]
[null,null,202,"MATRÍCULA POR GRADO DE ESTUDIO Y SEXO, SEGÚN TIPO DE DISCAPACIDAD U OTRA CONDICIÓN"]
[]
[null,null,"TIPO DE DISCAPACIDAD U OTRA CONDICIÓN",null,null,null,null,null,null,"TOTAL",null,"GRADO DE ESTUDIO Y SEXO"]
[null,null,null,null,null,null,null,null,null,null,null,"1º",null,"2º",null,"3º",null,"4º",null,"5º",null,"6º"]
[null,null,null,null,null,null,null,null,null,"H","M","H","M","H","M","H","M","H","M","H","M","H","M"]
["00",null,"TOTAL",null,null,null,null,null,null,{"$f":"SUM(J38:J49)","v":0},0,0,0,0,0,0,0,0,0,0,0,0,0]
["01",null,"DISCAPACIDAD INTELECTUAL - Severa",null,null,null,null,null,null,{"$f":"L38+N38+P38+R38+T38+V38","v":0},{"$f":"M38+O38+Q38+S38+U38+W38","v":0},null,null,null,null,null,null,null,null,null,null,null,null,null,{"$f":"G15","v":0},{"$f":"H15","v":0}]
["02",null,"DISCAPACIDAD AUDITIVA - Hipoacusia",null,null,null,null,null,null,0,0,null,null,null,null,null,null,null,null,null,null,null,null,null,{"$f":"I15","v":0},{"$f":"J15","v":0}]
["03",null,"DISCAPACIDAD AUDITIVA - Sordera",null,null,null,null,null,null,0,0,null,null,null,null,null,null,null,null,null,null,null,null,null,{"$f":"K15","v":0},{"$f":"L15","v":0}]
["04",null,"DISCAPACIDAD VISUAL - Baja Visión",null,null,null,null,null,null,0,0,null,null,null,null,null,null,null,null,null,null,null,null,null,{"$f":"M15","v":0},{"$f":"N15","v":0}]
["05",null,"DISCAPACIDAD VISUAL - Ceguera",null,null,null,null,null,null,0,0,null,null,null,null,null,null,null,null,null,null,null,null,null,{"$f":"O15","v":0},{"$f":"P15","v":0}]
["06",null,"DISCAPACIDAD FÍSICA O MOTORA",null,null,null,null,null,null,{"$f":"L43+N43+P43+R43+T43+V43","v":0},0,null,null,null,null,null,null,null,null,null,null,null,null,null,{"$f":"Q15","v":0},{"$f":"R15","v":0}]
["07",null,"TEA - Requiere de apoyo (Nivel 1)",null,null,null,null,null,null,0,0,null,null,null,null,null,null,null,null,null,null,null,null,null,{"$f":"S15","v":0},{"$f":"T15","v":0}]
["08",null,"TEA - Requiere de apoyo notable (Nivel 2)",null,null,null,null,null,null,{"$f":"L45+N45+P45+R45+T45+V45","v":0},{"$f":"M45+O45+Q45+S45+U45+W45","v":0},null,null,null,null,null,null,null,null,null,null,null,null,null,{"$f":"U15","v":0},{"$f":"V15","v":0}]
["09",null,"TEA - Requiere de apoyo muy notable (Nivel 3)",null,null,null,null,null,null,0,0,null,null,null,null,null,null,null,null,null,null,null,null,null,{"$f":"W15","v":0},{"$f":"X15","v":0}]
["10",null,"SORDOCEGUERA",null,null,null,null,null,null,0,0,null,null,null,null,null,null,null,null,null,null,null,null,null,{"$f":"Y15","v":0},{"$f":"Z15","v":0}]
["11",null,"MULTIDISCAPACIDAD (MDE)",null,null,null,null,null,null,0,0,null,null,null,null,null,null,null,null,null,null,null,null,null,{"$f":"AA15","v":0},{"$f":"AB15","v":0}]
["12",null,"OTRA DISCAPACIDAD U OTRA CONDICIÓN",null,null,null,null,null,null,0,0,null,null,null,null,null,null,null,null,null,null,null,null,null,{"$f":"AC15","v":0},{"$f":"AD15","v":0}]
[null,null,"Nota: Los totales de esta tabla deben ser iguales a los de la tabla 201."]
[]
[null,null,203,"MATRÍCULA POR TIPO DE DOCUMENTO DE EVIDENCIA Y SEXO, SEGÚN TIPO DE DISCAPACIDAD U OTRA CONDICIÓN"]
[]
[null,null,"TIPO DE DISCAPACIDAD U OTRA CONDICIÓN",null,null,null,null,null,null,"TOTAL",null,"DOCUMENTO DE EVIDENCIA"]
[null,null,null,null,null,null,null,null,null,null,null,"Certificado de Discapacidad",null,"Informe o Certificado Médico\nde profesional o institución",null,"Informe\nPsicopedagógico"]
[null,null,null,null,null,null,null,null,null,"H","M","H","M","H","M","H","M"]
["00",null,"TOTAL",null,null,null,null,null,null,{"$f":"SUM(J58:J69)","v":0},0,0,0,0,0,0,0]
["01",null,"DISCAPACIDAD INTELECTUAL - Severa",null,null,null,null,null,null,{"$f":"L58+N58+P58","v":0},{"$f":"M58+O58+Q58","v":0}]
["02",null,"DISCAPACIDAD AUDITIVA - Hipoacusia",null,null,null,null,null,null,{"$f":"L59+N59+P59","v":0},{"$f":"M59+O59+Q59","v":0}]
["03",null,"DISCAPACIDAD AUDITIVA - Sordera",null,null,null,null,null,null,{"$f":"L60+N60+P60","v":0},{"$f":"M60+O60+Q60","v":0}]
["04",null,"DISCAPACIDAD VISUAL - Baja Visión",null,null,null,null,null,null,0,0]
["05",null,"DISCAPACIDAD VISUAL - Ceguera",null,null,null,null,null,null,0,0]
["06",null,"DISCAPACIDAD FÍSICA O MOTORA",null,null,null,null,null,null,0,0]
["07",null,"TEA - Requiere de apoyo (Nivel 1)",null,null,null,null,null,null,0,0]
["08",null,"TEA - Requiere de apoyo notable (Nivel 2)",null,null,null,null,null,null,0,0]
["09",null,"TEA - Requiere de apoyo muy notable (Nivel 3)",null,null,null,null,null,null,0,0]
["10",null,"SORDOCEGUERA",null,null,null,null,null,null,0,0]
["11",null,"MULTIDISCAPACIDAD (MDE)",null,null,null,null,null,null,0,0]
["12",null,"OTRA DISCAPACIDAD U OTRA CONDICIÓN",null,null,null,null,null,null,0,0]
[]
[null,null,204,"MATRÍCULADOS QUE SE ENCUENTREN EN SITUACIÓN DE HOSPITALIZACIÓN AL MOMENTO DEL REPORTE DEL CENSO EDUCATIVO 2022, SEGÚN TIPO DE DISCAPACIDAD U OTRA CONDICIÓN"]
[]
[null,null,"TIPO DE DISCAPACIDAD U OTRA CONDICIÓN",null,null,null,null,null,null,"TOTAL",null,"Estudiantes en situación de hospitalización"]
[null,null,null,null,null,null,null,null,null,null,null,"Menos de 15 días de hospitalización",null,"De 15 a 30 días de hospitalización",null,"Más de 30 días de hospitalización"]
[null,null,null,null,null,null,null,null,null,"H","M","H","M","H","M","H","M"]
["00",null,"TOTAL",null,null,null,null,null,null,{"$f":"SUM(J77:J88)","v":0},0,0,0,0,0,0,0]
["01",null,"DISCAPACIDAD INTELECTUAL - Severa",null,null,null,null,null,null,{"$f":"L77+N77+P77","v":0},{"$f":"M77+O77+Q77","v":0}]
["02",null,"DISCAPACIDAD AUDITIVA - Hipoacusia",null,null,null,null,null,null,{"$f":"L78+N78+P78","v":0},{"$f":"M78+O78+Q78","v":0}]
["03",null,"DISCAPACIDAD AUDITIVA - Sordera",null,null,null,null,null,null,{"$f":"L79+N79+P79","v":0},{"$f":"M79+O79+Q79","v":0}]
["04",null,"DISCAPACIDAD VISUAL - Baja Visión",null,null,null,null,null,null,0,0]
["05",null,"DISCAPACIDAD VISUAL - Ceguera",null,null,null,null,null,null,0,0]
["06",null,"DISCAPACIDAD FÍSICA O MOTORA",null,null,null,null,null,null,0,0]
["07",null,"TEA - Requiere de apoyo (Nivel 1)",null,null,null,null,null,null,0,0]
["08",null,"TEA - Requiere de apoyo notable (Nivel 2)",null,null,null,null,null,null,{"$f":"L84+N84+P84","v":0},{"$f":"M84+O84+Q84","v":0}]
["09",null,"TEA - Requiere de apoyo muy notable (Nivel 3)",null,null,null,null,null,null,0,0]
["10",null,"SORDOCEGUERA",null,null,null,null,null,null,0,0]
["11",null,"MULTIDISCAPACIDAD (MDE)",null,null,null,null,null,null,0,0]
["12",null,"OTRA DISCAPACIDAD U OTRA CONDICIÓN",null,null,null,null,null,null,0,0]
[]
[null,null,205,"NÚMERO TOTAL DE SECCIONES POR GRADO DE ESTUDIO, SEGÚN TURNO"]
[]
[null,null,"TURNO",null,null,"TOTAL\nSECCIONES",null,"GRADO DE ESTUDIO"]
[null,null,null,null,null,null,null,"1º","2º","3º","4º","5º","6º"]
["00",null,"TOTAL",null,null,{"$f":"SUM(H94:M94)","v":0},null,{"$f":"SUM(H95:H96)","v":0},0,0,0,0,0]
["01",null,"Mañana",null,null,{"$f":"SUM(H95:M95)","v":0}]
["02",null,"Tarde",null,null,{"$f":"SUM(H96:M96)","v":0}]
[]
[null,null,206,"¿QUÉ GRADOS ATENDIDOS CUENTAN CON BIBLIOTECA DE AULA?"]
[null,null,"Marque con un aspa “X” el grado correspondiente y anote el número total de ejemplares según corresponda"]
[null,null,null,"Edad atendida",null,null,"N° Total de\nEjemplares"]
[]
["01",null,null,null,"1º Grado",null,null,null,null,null,"Nota :"]
["02",null,null,null,"2º Grado",null,null,null,null,null,"Las bibliotecas de aula están constituidas por libros, láminas y otros materiales didácticos similares, puestos al alcance de los estudiantes del aula."]
["03",null,null,null,"3º Grado"]
["04",null,null,null,"4º Grado"]
["05",null,null,null,"5º Grado"]
["06",null,null,null,"6º Grado"]
["07",null,null,null,"Ninguna edad",null,{"$f":"SUM(G102:H107)","v":0}]

{"sheet":"C300","index":3,"n_rows":184,"n_cols":65,"rows_kept":184,"cut":false,"hidden":false,"merged":[[15,46,15,48],[16,46,16,48],[15,49,16,49],[15,50,17,50],[15,24,17,24],[15,31,17,31],[15,32,17,32],[15,30,17,30],[15,25,17,25],[15,26,17,26],[15,28,17,28],[15,27,17,27],[15,29,17,29],[16,41,17,41],[15,34,17,34],[15,37,17,37],[7,10,7,23],[15,14,15,15],[15,10,17,10],[15,19,17,19],[15,16,17,16],[15,17,17,17],[15,18,17,18],[14,14,14,15],[15,22,17,22],[15,23,17,23],[15,20,17,20],[15,21,17,21],[15,11,17,11],[15,12,17,12],[15,13,17,13],[14,43,14,45],[15,39,15,42],[15,43,15,45],[16,39,17,39],[16,40,17,40],[16,42,17,42],[16,43,17,43],[16,44,16,45],[15,38,17,38],[15,35,17,35],[15,33,17,33],[15,36,17,36],[14,39,14,42]]}
[]
[null,null,null,null,null,null,null,null,null,null,"CENSO EDUCATIVO 2023"]
[null,null,null,null,null,null,null,null,null,null,"MATRÍCULA, DOCENTES Y RECURSOS"]
[]
["PERSONAL",{"$f":"N10+U10+W10","v":0}]
[]
["DOCENTES",{"$f":"COUNTIF(Q19:Q118,\"01: Docente\")","v":0},null,null,null,null,null,null,null,null,"300. PERSONAL DOCENTE, ADMINISTRATIVO Y AUXILIARES DE EDUCACIÓN"]
["AUXILIARES",{"$f":"COUNTIF(Q19:Q118,\"03: Aux. de Educación\")","v":0},null,null,null,null,null,null,null,null,"En esta tabla, REGISTRE a todo el personal docente, auxiliares de educación y personal administrativo que se encuentre laborando en el servicio/nivel educativo durante el periodo\nde reporte del censo educativo. (EXCLUYA al personal que se encuentre haciendo uso de licencia y a los que han sido destacados a otra IE/DRE/UGEL)"]
["ADMINISTRATIVOS",{"$f":"COUNTIF(Q19:Q118,\"02: Administrativo\")","v":0}]
["NO DOCENTES",{"$f":"COUNTIF(Q19:Q118,\"04: No Docente\")","v":0},null,null,null,null,null,null,null,null,null,null,"TOTAL PROFESIONALES :  ",{"$f":"P10+S10","v":0},"DOCENTES :   ",null,null,"NO DOCENTES :   ",null,"AUX. DE EDUCACIÓN :  ",null,"ADMINISTRATIVOS :  "]
["DOCENTES CON SECCIÓN",{"$f":"COUNTIF(AM19:AM118,\"SI\")","v":0}]
[null,{"$f":"B7+B8+B9","v":0},null,null,null,null,null,null,null,null,"A continuación registre a todo el personal que desempeñe funciones docentes en el Servicio/Nivel educativo: Directivos con o sin aula a cargo, docentes de aula, jefes o jerárquicos, especiales (ed. física, computación, etc.)"]
[null,null,null,null,null,null,null,null,null,null,"Documentos fuente: Legajo de personal y CAP de la institución educativa."]
[null,null,3,4,5,6,7,8,9]
[null,null,null,null,null,null,null,null,null,null,null,301.10000000000002,301.2,301.3,302,null,303,304,305,306,307,308,309,310,311,312,313,314,315,316,317,318,319,320,321,322,323,324,325,326,null,null,null,327,null,null,null,328,null,329,330]
["GESTION PRIVADA",{"$f":"IF(OR('C100'!I37=\"X\",'C100'!N37=\"X\"),1,IF('C100'!S37=\"X\",3,\"\"))","v":""},null,null,null,null,null,null,null,null,"Nº","Apellido Paterno","Apellido Materno","Nombres","Documento de Identidad",null,"Tipo de\nPersonal","Edad","Sexo","Lengua\nmaterna","¿Domina una\nlengua\noriginaria?\nSí - No","Lengua originaria\nque domina","Fuente de\nfinanciamiento","Condición Laboral","Modalidad de Contrato","Máximo nivel\neducativo alcanzado","Especialidad Pedagógica\nque ha estudiado","¿En qué tipo de\ninstitución obtuvo\nsu formación pedagógica?","Segunda especialidad","Estudios de Postgrado en Pedagogía","Tiempo de Servicio\n(en años)","Años de Experiencia Laboral","Años de\nexperiencia\nlaboral en\neste servicio/nivel\neducativo","Escala\nMagisterial","Función o cargo","Situación en cargo\ndirectivo","Licencia \no\nDestaque","Jornada Laboral según\nNombramiento\no Contrato","¿Tiene secciones a cargo?","Conocimiento de Ingles",null,null,null,"Certificación de Inglés",null,null,"¿Dónde presta el servicio?",null,null,"¿Presenta alguna discapacidad?","Solo si respondió Sí en la pregunta\n329 ¿Cúal es el tipo de discapacidad?"]
[null,null,"Exp1","Exp2","Exp3","Exp4","Exp5","Exp6","Exp7",null,null,null,null,null,302.10000000000002,302.2,null,null,null,null,null,null,null,null,null,null,null,null,null,null,null,null,null,null,null,null,null,null,null,"No Sabe","Habla","Lee","Escribe","No Tiene","Si Tiene",null,"Marque una “X” donde corresponda"]
["302.1 Tipo de documento de Identidad","314. Tipo de inst. donde estudio","Corr","Escala","Gest","Fun cion","Duplex","Fmt","Leng",null,null,null,null,null,"Tipo","Número",null,null,null,null,null,null,null,null,null,null,null,null,null,null,null,null,null,null,null,null,null,null,null,null,null,null,null,null,"Nacional","Interna cional","CEBE","SAANEE","PANETS","Sí / No"]
["01: DNI.","01: IESP (Público)",1,{"$f":"IF(AND(LEFT(Q19,2)=\"01\",LEFT(W19,2)=\"01\",LEFT(X19,2)=\"01\",E19=1),1,0)","v":0},{"$f":"$B$16","v":""},{"$f":"IF(Q19<>\"\",VALUE(LEFT(Q19,2)),0)","v":0},{"$f":"IF(P19<>\"\",COUNTIF($Q$20:$Q$319,P19),0)","v":0},{"$f":"IF(K19<>\"\",1,0)","v":0},{"$f":"IF(AND(Q19=\"01: Docente\",U19=\"SI\"),1,0)","v":0},null,{"$f":"IF(C19<=$B$5,C19,\"\")","v":""},"","","","","","","","","","","","","","","","","","","","","","","","","","","","","","","","","","","","","","","","","","","","","","","","","","","","","",""]
["02: Carnet Ext.","02: IESP (Privado)",2,{"$f":"IF(AND(LEFT(Q20,2)=\"01\",LEFT(W20,2)=\"01\",LEFT(X20,2)=\"01\",E20=1),1,0)","v":0},{"$f":"$B$16","v":""},{"$f":"IF(Q20<>\"\",VALUE(LEFT(Q20,2)),0)","v":0},{"$f":"IF(P20<>\"\",COUNTIF($Q$20:$Q$319,P20),0)","v":0},0,{"$f":"IF(AND(Q20=\"01: Docente\",U20=\"SI\"),1,0)","v":0},null,{"$f":"IF(C20<=$B$5,C20,\"\")","v":""},"","","","","","","","","","","","","","","","","","","","","","","","","","","","","","","","","","","","","","","","",""]
["03: Pasaporte","03: Universidad Privada",3,0,"",0,0,0,0,null,{"$f":"IF(C21<=$B$5,C21,\"\")","v":""},"","","","","","","","","","","","","","","","","","","","","","","","","","","","","","","","","","","","","","","","",""]
[null,"04: Universidad Pública",4,0,"",0,0,0,0,null,"","","","","","","","","","","","","","","","","","","","","","","","","","","","","","","","","","","","","","","","","",""]
["303. Tipo de Personal",null,5,0,"",0,0,0,0,null,"","","","","","","","","","","","","","","","","","","","","","","","","","","","","","","","","","","","","","","","","",""]
["01: Docente","315. Segunda Especialidad",6,0,"",0,0,0,0,null,"","","","","","","","","","","","","","","","","","","","","","","","","","","","","","","","","","","","","","","","","",""]
["02: Administrativo","Utilice las especialidades de la tabla de códigos 313.",7,0,"",0,0,0,0,null,"","","","","","","","","","","","","","","","","","","","","","","","","","","","","","","","","","","","","","","","","","","","","","","","","","","","","","",""]
["03: Aux. de Educación",null,8,0,"",0,0,0,0,null,"","","","","","","","","","","","","","","","","","","","","","","","","","","","","","","","","","","","","","","","","","","","","","","","","","","","","","",""]
["04: No Docente","316. Estudios de Postgrado en Pedagogía",9,0,"",0,0,0,0,null,"","","","","","","","","","","","","","","","","","","","","","","","","","","","","","","","","","","","","","","","","","","","","","","","","","","","","","",""]
[null,"Estudios de Maestría y doctorado",10,0,"",0,0,0,0,null,"","","","","","","","","","","","","","","","","","","","","","","","","","","","","","","","","","","","","","","","","","","","","","","","","","","","","","",""]
["305. Sexo","01: Maestria concluida con grado",11,0,"",0,0,0,0,null,"","","","","","","","","","","","","","","","","","","","","","","","","","","","","","","","","","","","","","","","","","","","","","","","","","","","","","",""]
["Hombre","02: Maestria concluida sin grado",12,0,"",0,0,0,0,null,"","","","","","","","","","","","","","","","","","","","","","","","","","","","","","","","","","","","","","","","","","","","","","","","","","","","","","",""]
["Mujer","03: Maestria en proceso",13,0,"",0,0,0,0,null,"","","","","","","","","","","","","","","","","","","","","","","","","","","","","","","","","","","","","","","","","","","","","","","","","","","","","","",""]
[null,"04: Doctorado concluido con grado",14,0,"",0,0,0,0,null,"","","","","","","","","","","","","","","","","","","","","","","","","","","","","","","","","","","","","","","","","","","","","","","","","","","","","","",""]
["306. Lengua Materna","05: Doctorado concluido sin grado",15,0,"",0,0,0,0,null,"","","","","","","","","","","","","","","","","","","","","","","","","","","","","","","","","","","","","","","","","","","","","","","","","","","","","","",""]
["0100: Castellano","06: Doctorado en proceso",16,0,"",0,0,0,0,null,"","","","","","","","","","","","","","","","","","","","","","","","","","","","","","","","","","","","","","","","","","","","","","","","","","","","","","",""]
["0200: Achuar","07: Sin Postgrado",17,0,"",0,0,0,0,null,"","","","","","","","","","","","","","","","","","","","","","","","","","","","","","","","","","","","","","","","","","","","","","","","","","","","","","",""]
["0300: Aimara",null,18,0,"",0,0,0,0,null,"","","","","","","","","","","","","","","","","","","","","","","","","","","","","","","","","","","","","","","","","","","","","","","","","","","","","","",""]
["0400: Amahuaca",null,19,0,"",0,0,0,0,null,"","","","","","","","","","","","","","","","","","","","","","","","","","","","","","","","","","","","","","","","","","","","","","","","","","","","","","",""]
["0500: Arabela","317. Tiempo de Servicio",20,0,"",0,0,0,0,null,"","","","","","","","","","","","","","","","","","","","","","","","","","","","","","","","","","","","","","","","","","","","","","","","","","","","","","",""]
["0600: Asháninka","Solo personal Nombrado.",21,0,"",0,0,0,0,null,"","","","","","","","","","","","","","","","","","","","","","","","","","","","","","","","","","","","","","","","","","","","","","","","","","","","","","",""]
["0610: Asheninka","Tiempo contado expresado en años desde su fecha de Nombramiento",22,0,"",0,0,0,0,null,"","","","","","","","","","","","","","","","","","","","","","","","","","","","","","","","","","","","","","","","","","","","","","","","","","","","","","",""]
["0700: Awajún",null,23,0,"",0,0,0,0,null,"","","","","","","","","","","","","","","","","","","","","","","","","","","","","","","","","","","","","","","","","","","","","","","","","","","","","","",""]
["0800: Bora","318. Años de Experiencia Laboral",24,0,"",0,0,0,0,null,"","","","","","","","","","","","","","","","","","","","","","","","","","","","","","","","","","","","","","","","","","","","","","","","","","","","","","",""]
["0900: Kapanawa","Registre el total de años que tiene como experiencia",25,0,"",0,0,0,0,null,"","","","","","","","","","","","","","","","","","","","","","","","","","","","","","","","","","","","","","","","","","","","","","","","","","","","","","",""]
["1000: Cashinahua","en el Tipo de Personal que se está registrando (Tabla 301.)",26,0,"",0,0,0,0,null,"","","","","","","","","","","","","","","","","","","","","","","","","","","","","","","","","","","","","","","","","","","","","","","","","","","","","","",""]
["1100: Kawki",null,27,0,"",0,0,0,0,null,"","","","","","","","","","","","","","","","","","","","","","","","","","","","","","","","","","","","","","","","","","","","","","","","","","","","","","",""]
["1200: Chamikuro","319. Años de experiencia laboral en este servicio/ nivel educativo",28,0,"",0,0,0,0,null,"","","","","","","","","","","","","","","","","","","","","","","","","","","","","","","","","","","","","","","","","","","","","","","","","","","","","","",""]
["1300: Ese eja","Anote el N° de años de experiencia prestando servicios",29,0,"",0,0,0,0,null,"","","","","","","","","","","","","","","","","","","","","","","","","","","","","","","","","","","","","","","","","","","","","","","","","","","","","","",""]
["1400: Harakbut","en este servicio/nivel educativo por el tipo de personal",30,0,"",0,0,0,0,null,"","","","","","","","","","","","","","","","","","","","","","","","","","","","","","","","","","","","","","","","","","","","","","","","","","","","","","",""]
["1500: Iñapari","que se está registrando (Tabla 301.)",31,0,"",0,0,0,0,null,"","","","","","","","","","","","","","","","","","","","","","","","","","","","","","","","","","","","","","","","","","","","","","","","","","","","","","",""]
["1600: Ikuitu",null,32,0,"",0,0,0,0,null,"","","","","","","","","","","","","","","","","","","","","","","","","","","","","","","","","","","","","","","","","","","","","","","","","","","","","","",""]
["1700: Iskonawa","320. Escala Magisterial",33,0,"",0,0,0,0,null,"","","","","","","","","","","","","","","","","","","","","","","","","","","","","","","","","","","","","","","","","","","","","","","","","","","","","","",""]
["1800: Jaqaru","Complete los datos de Escala Magisterial, según corresponda",34,0,"",0,0,0,0,null,"","","","","","","","","","","","","","","","","","","","","","","","","","","","","","","","","","","","","","","","","","","","","","","","","","","","","","",""]
["1900: Kakataibo","01: Primera",35,0,"",0,0,0,0,null,"","","","","","","","","","","","","","","","","","","","","","","","","","","","","","","","","","","","","","","","","","","","","","","","","","","","","","",""]
["2000: Kakinte (caquinte)","02: Segunda",36,0,"",0,0,0,0,null,"","","","","","","","","","","","","","","","","","","","","","","","","","","","","","","","","","","","","","","","","","","","","","","","","","","","","","",""]
["2110: Kandozi (Chapra)","03: Tercera",37,0,"",0,0,0,0,null,"","","","","","","","","","","","","","","","","","","","","","","","","","","","","","","","","","","","","","","","","","","","","","","","","","","","","","",""]
["2120: Kandozi (Kandozi)","04: Cuarta",38,0,"",0,0,0,0,null,"","","","","","","","","","","","","","","","","","","","","","","","","","","","","","","","","","","","","","","","","","","","","","","","","","","","","","",""]
["2200: Kukama-kukamiria","05: Quinta",39,0,"",0,0,0,0,null,"","","","","","","","","","","","","","","","","","","","","","","","","","","","","","","","","","","","","","","","","","","","","","","","","","","","","","",""]
["2300: Madija (culina)","06: Sexta",40,0,"",0,0,0,0,null,"","","","","","","","","","","","","","","","","","","","","","","","","","","","","","","","","","","","","","","","","","","","","","","","","","","","","","",""]
["2400: Maijiki","07: Séptima",41,0,"",0,0,0,0,null,"","","","","","","","","","","","","","","","","","","","","","","","","","","","","","","","","","","","","","","","","","","","","","","","","","","","","","",""]
["2500: Matsés","08: Octava",42,0,"",0,0,0,0,null,"","","","","","","","","","","","","","","","","","","","","","","","","","","","","","","","","","","","","","","","","","","","","","","","","","","","","","",""]
["2600: Matsigenka","09: Sin Escala",43,0,"",0,0,0,0,null,"","","","","","","","","","","","","","","","","","","","","","","","","","","","","","","","","","","","","","","","","","","","","","","","","","","","","","",""]
["2700: Munichi",null,44,0,"",0,0,0,0,null,"","","","","","","","","","","","","","","","","","","","","","","","","","","","","","","","","","","","","","","","","","","","","","","","","","","","","","",""]
["2800: Murui-muinani","321. Función o Cargo",45,0,"",0,0,0,0,null,"","","","","","","","","","","","","","","","","","","","","","","","","","","","","","","","","","","","","","","","","","","","","","","","","","","","","","",""]
["2900: Matsigenka-montetokunirira","(Desempeñado a la fecha de reporte)",46,0,"",0,0,0,0,null,"","","","","","","","","","","","","","","","","","","","","","","","","","","","","","","","","","","","","","","","","","","","","","","","","","","","","","",""]
["3000: Nomatsigenga","Docentes",47,0,"",0,0,0,0,null,"","","","","","","","","","","","","","","","","","","","","","","","","","","","","","","","","","","","","","","","","","","","","","","","","","","","","","",""]
["3100: Ocaina","01: (102)-Director",48,0,"",0,0,0,0,null,"","","","","","","","","","","","","","","","","","","","","","","","","","","","","","","","","","","","","","","","","","","","","","","","","","","","","","",""]
["3200: Omagua","02: (109)-Coordinador del SAANEE",49,0,"",0,0,0,0,null,"","","","","","","","","","","","","","","","","","","","","","","","","","","","","","","","","","","","","","","","","","","","","","","","","","","","","","",""]
["3310: Quechua amazónico (Kichwa)","03: (141)-Docente SAANEE",50,0,"",0,0,0,0,null,"","","","","","","","","","","","","","","","","","","","","","","","","","","","","","","","","","","","","","","","","","","","","","","","","","","","","","",""]
["3321: Quechua central (Ancash)","04: (111)-Docente de Aula",51,0,"",0,0,0,0,null,"","","","","","","","","","","","","","","","","","","","","","","","","","","","","","","","","","","","","","","","","","","","","","","","","","","","","","",""]
["3322: Quechua central (Huánuco)","05: (139)-Otro Docente o Jerárquico",52,0,"",0,0,0,0,null,"","","","","","","","","","","","","","","","","","","","","","","","","","","","","","","","","","","","","","","","","","","","","","","","","","","","","","",""]
["3323: Quechua central (Wanka)",null,53,0,"",0,0,0,0,null,"","","","","","","","","","","","","","","","","","","","","","","","","","","","","","","","","","","","","","","","","","","","","","","","","","","","","","",""]
["3324: Quechua central (Pasco)","No Docentes",54,0,"",0,0,0,0,null,"","","","","","","","","","","","","","","","","","","","","","","","","","","","","","","","","","","","","","","","","","","","","","","","","","","","","","",""]
["3331: Quechua norteño (Cajamarca)","06: (532)-Terapista Físico",55,0,"",0,0,0,0,null,"","","","","","","","","","","","","","","","","","","","","","","","","","","","","","","","","","","","","","","","","","","","","","","","","","","","","","",""]
["3332: Quechua norteño (Inkawasi Kañaris)","07: (540)-Terapista OcupacionaL",56,0,"",0,0,0,0,null,"","","","","","","","","","","","","","","","","","","","","","","","","","","","","","","","","","","","","","","","","","","","","","","","","","","","","","",""]
["3341: Quechua sureño (Chanka)","08: (533)-Terapista del Lenguaje",57,0,"",0,0,0,0,null,"","","","","","","","","","","","","","","","","","","","","","","","","","","","","","","","","","","","","","","","","","","","","","","","","","","","","","",""]
["3342: Quechua sureño (Collao)","09: (503)-Personal de Salud",58,0,"",0,0,0,0,null,"","","","","","","","","","","","","","","","","","","","","","","","","","","","","","","","","","","","","","","","","","","","","","","","","","","","","","",""]
["3400: Resígaro","10: (501)-Psicólogo",59,0,"",0,0,0,0,null,"","","","","","","","","","","","","","","","","","","","","","","","","","","","","","","","","","","","","","","","","","","","","","","","","","","","","","",""]
["3500: Secoya","11: (502)-Trabajo Social / Servicio Social",60,0,"",0,0,0,0,null,"","","","","","","","","","","","","","","","","","","","","","","","","","","","","","","","","","","","","","","","","","","","","","","","","","","","","","",""]
["3600: Sharanahua","12: (537)-Guía intérprete de sordoceguera",61,0,"",0,0,0,0,null,"","","","","","","","","","","","","","","","","","","","","","","","","","","","","","","","","","","","","","","","","","","","","","","","","","","","","","",""]
["3700: Shawi","13: (538)-Intérprete de Lengua de Señas Peruana",62,0,"",0,0,0,0,null,"","","","","","","","","","","","","","","","","","","","","","","","","","","","","","","","","","","","","","","","","","","","","","","","","","","","","","",""]
["3800: Shipibo-Konibo","14: (539)-Modelo Lingüístico",63,0,"",0,0,0,0,null,"","","","","","","","","","","","","","","","","","","","","","","","","","","","","","","","","","","","","","","","","","","","","","","","","","","","","","",""]
["3900: Shiwilu",null,64,0,"",0,0,0,0,null,"","","","","","","","","","","","","","","","","","","","","","","","","","","","","","","","","","","","","","","","","","","","","","","","","","","","","","",""]
["4000: Taushiro",null,65,0,"",0,0,{"$f":"IF(K83<>\"\",1,0)","v":0},0,null,"","","","","","","","","","","","","","","","","","","","","","","","","","","","","","","","","","","","","","","","","","","","","","","","","","","","","","",""]
["4100: Ticuna",null,66,{"$f":"IF(AND(LEFT(Q84,2)=\"01\",LEFT(W84,2)=\"01\",LEFT(X84,2)=\"01\",E84=1),1,0)","v":0},{"$f":"$B$16","v":""},{"$f":"IF(Q84<>\"\",VALUE(LEFT(Q84,2)),0)","v":0},{"$f":"IF(P84<>\"\",COUNTIF($Q$20:$Q$319,P84),0)","v":0},0,{"$f":"IF(AND(Q84=\"01: Docente\",U84=\"SI\"),1,0)","v":0},null,"","","","","","","","","","","","","","","","","","","","","","","","","","","","","","","","","","","","","","","","","","","","","","","","","","","","","","",""]
["4200: Urarina",null,67,0,"",0,0,0,0,null,{"$f":"IF(C85<=$B$5,C85,\"\")","v":""},"","","","","","","","","","","","","","","","","","","","","","","","","","","","","","","","","","","","","","","","","","","","","","","","","","","","","",""]
["4300: Wampis","Administrativos",68,0,"",0,0,0,0,null,"","","","","","","","","","","","","","","","","","","","","","","","","","","","","","","","","","","","","","","","","","","","","","","","","","","","","","",""]
["4400: Yagua","15: (504)-Administrador o Contador",69,0,"",0,0,0,0,null,"","","","","","","","","","","","","","","","","","","","","","","","","","","","","","","","","","","","","","","","","","","","","","","","","","","","","","",""]
["4500: Yaminahua","16: (505)-Otro personal profesional",70,0,"",0,0,0,0,null,"","","","","","","","","","","","","","","","","","","","","","","","","","","","","","","","","","","","","","","","","","","","","","","","","","","","","","",""]
["4600: Yanesha","17: (506)-Auxiliar de Biblioteca",71,0,"",0,0,0,0,null,"","","","","","","","","","","","","","","","","","","","","","","","","","","","","","","","","","","","","","","","","","","","","","","","","","","","","","",""]
["4700: Yine","18: (507)-Auxiliar de Laboratorios",72,0,"",0,0,0,0,null,"","","","","","","","","","","","","","","","","","","","","","","","","","","","","","","","","","","","","","","","","","","","","","","","","","","","","","",""]
["4800: Nahua","19: (508)-Secretaria u oficinista",73,0,"",0,0,0,0,null,"","","","","","","","","","","","","","","","","","","","","","","","","","","","","","","","","","","","","","","","","","","","","","","","","","","","","","",""]
["5100: Alemán","20: (511)-Asistente Administrativo",74,0,"",0,0,0,0,null,"","","","","","","","","","","","","","","","","","","","","","","","","","","","","","","","","","","","","","","","","","","","","","","","","","","","","","",""]
["5200: Inglés","21: (512)-Personal de Servicio - Mantenimiento",75,0,"",0,0,0,0,null,"","","","","","","","","","","","","","","","","","","","","","","","","","","","","","","","","","","","","","","","","","","","","","","","","","","","","","",""]
["5300: Italiano","22: (513)-Personal de Servicio - Cocina",76,0,"",0,0,0,0,null,"","","","","","","","","","","","","","","","","","","","","","","","","","","","","","","","","","","","","","","","","","","","","","","","","","","","","","",""]
["5400: Japonés","23: (514)-Personal de Servicio - Limpieza",77,0,"",0,0,0,0,null,"","","","","","","","","","","","","","","","","","","","","","","","","","","","","","","","","","","","","","","","","","","","","","","","","","","","","","",""]
["5500: Portugués","24: (515)-Personal de Servicio - Vigilante",78,0,"",0,0,0,0,null,"","","","","","","","","","","","","","","","","","","","","","","","","","","","","","","","","","","","","","","","","","","","","","","","","","","","","","",""]
["5600: Ruso","25: (516)-Personal de Servicio - Otro",79,0,"",0,0,0,0,null,"","","","","","","","","","","","","","","","","","","","","","","","","","","","","","","","","","","","","","","","","","","","","","","","","","","","","","",""]
["5700: Francés","26: (518)-Otro personal No profesional",80,0,"",0,0,0,0,null,"","","","","","","","","","","","","","","","","","","","","","","","","","","","","","","","","","","","","","","","","","","","","","","","","","","","","","",""]
["5800: Otra lengua extranjera",null,81,0,"",0,0,0,0,null,"","","","","","","","","","","","","","","","","","","","","","","","","","","","","","","","","","","","","","","","","","","","","","","","","","","","","","",""]
[null,null,82,0,"",0,0,0,0,null,"","","","","","","","","","","","","","","","","","","","","","","","","","","","","","","","","","","","","","","","","","","","","","","","","","","","","","",""]
["308. Lengua Originaria",null,83,0,"",0,0,0,0,null,"","","","","","","","","","","","","","","","","","","","","","","","","","","","","","","","","","","","","","","","","","","","","","","","","","","","","","",""]
["De: 0200 a 4800",null,84,0,"",0,0,0,0,null,"","","","","","","","","","","","","","","","","","","","","","","","","","","","","","","","","","","","","","","","","","","","","","","","","","","","","","",""]
[null,null,85,0,"",0,0,0,0,null,"","","","","","","","","","","","","","","","","","","","","","","","","","","","","","","","","","","","","","","","","","","","","","","","","","","","","","",""]
["309. Fuente de Financiamiento",null,86,0,"",0,0,0,0,null,"","","","","","","","","","","","","","","","","","","","","","","","","","","","","","","","","","","","","","","","","","","","","","","","","","","","","","",""]
["01: Sector Educación",null,87,0,"",0,0,0,0,null,"","","","","","","","","","","","","","","","","","","","","","","","","","","","","","","","","","","","","","","","","","","","","","","","","","","","","","",""]
["02: Otro sector público",null,88,0,"",0,0,0,0,null,"","","","","","","","","","","","","","","","","","","","","","","","","","","","","","","","","","","","","","","","","","","","","","","","","","","","","","",""]
["03: Municipalidad",null,89,0,"",0,0,0,0,null,"","","","","","","","","","","","","","","","","","","","","","","","","","","","","","","","","","","","","","","","","","","","","","","","","","","","","","",""]
["04: Gobierno Regional",null,90,0,"",0,0,0,0,null,"","","","","","","","","","","","","","","","","","","","","","","","","","","","","","","","","","","","","","","","","","","","","","","","","","","","","","",""]
["05: APAFA",null,91,0,"",0,0,0,0,null,"","","","","","","","","","","","","","","","","","","","","","","","","","","","","","","","","","","","","","","","","","","","","","","","","","","","","","",""]
["06: Otra fuente Privada",null,92,0,"",0,0,0,0,null,"","","","","","","","","","","","","","","","","","","","","","","","","","","","","","","","","","","","","","","","","","","","","","","","","","","","","","",""]
[null,null,93,0,"",0,0,0,0,null,"","","","","","","","","","","","","","","","","","","","","","","","","","","","","","","","","","","","","","","","","","","","","","","","","","","","","","",""]
["310. Condición Laboral",null,94,0,"",0,0,0,0,null,"","","","","","","","","","","","","","","","","","","","","","","","","","","","","","","","","","","","","","","","","","","","","","","","","","","","","","",""]
["01: Nombrado",null,95,0,"",0,0,0,0,null,"","","","","","","","","","","","","","","","","","","","","","","","","","","","","","","","","","","","","","","","","","","","","","","","","","","","","","",""]
["02: Contratado",null,96,0,"",0,0,0,0,null,"","","","","","","","","","","","","","","","","","","","","","","","","","","","","","","","","","","","","","","","","","","","","","","","","","","","","","",""]
["03: No aplica",null,97,0,"",0,0,0,0,null,"","","","","","","","","","","","","","","","","","","","","","","","","","","","","","","","","","","","","","","","","","","","","","","","","","","","","","",""]
[null,null,98,0,"",0,0,0,0,null,"","","","","","","","","","","","","","","","","","","","","","","","","","","","","","","","","","","","","","","","","","","","","","","","","","","","","","",""]
["311. Modalidad de Contrato",null,99,0,"",0,0,0,0,null,"","","","","","","","","","","","","","","","","","","","","","","","","","","","","","","","","","","","","","","","","","","","","","","","","","","","","","",""]
["Contrato Público",null,100,0,"",0,0,0,0,null,"","","","","","","","","","","","","","","","","","","","","","","","","","","","","","","","","","","","","","","","","","","","","","","","","","","","","","",""]
["01: A plazo fijo D. Leg. 728"]
["02: Locación de Serv. / Honorarios","99: (999)-Auxiliar de Educación",null,null,null,null,null,null,null,null,"…","…","…","…","…","…","…","…","…","…","…","…","…","…","…","…","…","…","…","…","…","…","…","…","…","…","…","…","…","…","…","…","…","…","…","…","…","…","…","…","…"]
["03: CAS - D. Leg. 1057"]
["04: Contrato D. Leg. 276","322. Situación en el Cargo Directivo"]
["05: Contrato Ley 30328","01: Titular ratificado eval.2014"]
["06: Otra modalidad","02: Titular designado eval. 2015, 2016 y 2018"]
["Contrato Privado","03: Titular otro"]
["07: A plazo indefinido (Permanente)","04: Encargado por función, sin doc. formal"]
["08: Plazo fijo (Tiempo determinado)","05: Encargado"]
["09: A tiempo parcial (por horas)"]
["10: Locación de Serv. / Honorarios","323. Destaque o Licencia"]
["11: Otra modalidad","01: Cubriendo una licencia"]
[null,"02: De otra I.E./DRE/UGEL"]
["312. Máximo Nivel Educativo Alcanzado","03: No Aplica"]
["01: EP.Concluidos con título"]
["02: EP.Concluidos sin título"]
["03: EP.No concluidos"]
["04: NP.Concluidos con título","324. Jornada Laboral (Nombramiento / Contrato)"]
["05: NP.Concluidos sin título","40: 40 horas"]
["06: NP.No concluidos","30: 30 horas"]
["07: Secundaria","25: 25 horas"]
["08: Primaria","24: 24 horas"]
[null,"23: Menos 24 horas"]
["313. Especialidad del Título"]
["01: Educación Inicial","SI / NO"]
["02: Educación Primaria","SI"]
["03: E.I. Intercultural Bilingüe","NO"]
["04: E.P. Intercultural Bilingüe"]
["05: Educación Básica Alternativa","Parroquiales"]
["06: Educación Especial","05: APAFA"]
["07: Educación Física","06: Otra fuente Privada"]
["08: Educación Artística","01: Sector Educación"]
["09: E.S. Lengua y Literatura"]
["10: E.S. Comunicación"]
["11: E.S. Matemática y Física","336.2 ¿Cuál es el tipo de discapacidad?"]
["12: E.S. Matemática","01: Auditiva"]
["13: E.S. CCSS y Filosofía","02: Visual"]
["14: E.S. Ciencias Sociales","03: Física o Motora"]
["15: E.S. Ciencias Naturales","04: Otras"]
["16: E.S. Ciencia Tecnología y Ambiente"]
["17: E.S. Alimentación y Nutrición"]
["18: E.S. Biología y Química"]
["19: E.S. Historia y Geografía"]
["20: E.S. CC.HH. Sociales"]
["21: E.S. Idioma Inglés"]
["22: Educación Religiosa"]
["23: E.S. Educación Familiar"]
["24: E.T. Artes Industriales"]
["25: E.T. Artesanía"]
["26: E.T. Agropecuaria"]
["27: E.T. Construcción en madera"]
["28: E.T. Computación e Informática"]
["29: E.T. Carpintería/Ebanistería"]
["30: E.T. Electricidad"]
["31: E.T. Electrónica"]
["32: E.T. Ebanistería"]
["33: E.T. Industria del Vestido"]
["34: E.T. Industria del Vestido Alimentación y Alta Costura"]
["35: E.T. en Industria del Vestido y Alta Costura"]
["36: E.T.Técnica Esp. Ind. del Vestido Ind.Alimentaria y Artes"]
["37: E.T. Industria Alimentaria"]
["38: E.T. Mecánica Automotriz"]
["39: E.T. Mecánica de Producción"]
["40: E.T. Mecánica de Producción y Soldadura"]
["41: E.T. Textilería"]
["42: Otra pedagógica"]

{"sheet":"C400","index":4,"n_rows":125,"n_cols":25,"rows_kept":125,"cut":false,"hidden":false,"merged":[[39,3,39,4],[39,6,39,7],[36,3,36,4],[36,6,36,7],[32,9,33,9],[61,3,61,4],[61,6,61,7],[37,3,37,4],[37,6,37,7],[38,3,38,4],[38,6,38,7],[42,3,42,4],[42,6,42,7],[43,3,43,4],[43,6,43,7],[40,3,40,4],[40,6,40,7],[41,3,41,4],[41,6,41,7],[46,3,46,4],[46,6,46,7],[47,3,47,4],[47,6,47,7],[44,3,44,4],[32,2,33,2],[32,3,33,4],[32,5,33,5],[32,6,33,7],[35,3,35,4],[35,6,35,7],[32,14,32,15],[32,22,33,22],[32,24,33,24],[34,3,34,4],[34,6,34,7],[32,11,32,13],[32,16,32,17],[32,8,33,8],[32,10,33,10],[32,18,33,18],[32,23,33,23],[32,19,32,21],[44,6,44,7],[45,3,45,4],[45,6,45,7],[50,3,50,4],[50,6,50,7],[51,3,51,4],[51,6,51,7],[48,3,48,4],[48,6,48,7],[49,3,49,4],[49,6,49,7],[54,3,54,4],[54,6,54,7],[55,3,55,4],[55,6,55,7],[52,3,52,4],[52,6,52,7],[53,3,53,4],[53,6,53,7],[58,3,58,4],[58,6,58,7],[59,3,59,4],[59,6,59,7],[56,3,56,4],[56,6,56,7],[57,3,57,4],[57,6,57,7],[60,3,60,4],[60,6,60,7],[63,3,63,4],[63,6,63,7],[62,3,62,4],[62,6,62,7],[66,3,66,4],[66,6,66,7],[67,3,67,4],[67,6,67,7],[64,3,64,4],[64,6,64,7],[65,3,65,4],[65,6,65,7],[70,3,70,4],[70,6,70,7],[71,3,71,4],[71,6,71,7],[68,3,68,4],[68,6,68,7],[69,3,69,4],[69,6,69,7],[74,3,74,4],[74,6,74,7],[75,3,75,4],[75,6,75,7],[72,3,72,4],[72,6,72,7],[73,3,73,4],[73,6,73,7],[85,6,85,7],[78,3,78,4],[78,6,78,7],[79,3,79,4],[79,6,79,7],[76,3,76,4],[76,6,76,7],[77,3,77,4],[77,6,77,7],[82,3,82,4],[82,6,82,7],[103,3,103,4],[103,6,103,7],[6,2,6,10],[95,3,95,4],[95,6,95,7],[92,3,92,4],[92,6,92,7],[93,3,93,4],[93,6,93,7],[96,3,96,4],[96,6,96,7],[99,6,99,7],[90,3,90,4],[90,6,90,7],[91,3,91,4],[91,6,91,7],[88,3,88,4],[88,6,88,7],[89,3,89,4],[89,6,89,7],[94,3,94,4],[94,6,94,7],[83,3,83,4],[83,6,83,7],[1,5,1,8],[2,5,2,8],[101,3,101,4],[101,6,101,7],[102,3,102,4],[102,6,102,7],[99,3,99,4],[100,3,100,4],[100,6,100,7],[97,3,97,4],[97,6,97,7],[98,3,98,4],[98,6,98,7],[80,3,80,4],[80,6,80,7],[81,3,81,4],[81,6,81,7],[86,3,86,4],[86,6,86,7],[87,3,87,4],[87,6,87,7],[84,3,84,4],[84,6,84,7],[85,3,85,4]]}
[]
[null,null,null,null,null,"CENSO EDUCATIVO 2023"]
[null,null,null,null,null,"MATRÍCULA, DOCENTES Y RECURSOS"]
[]
[]
[]
[null,null,"400. SERVICIO DE APOYO Y ASESORAMIENTO PARA LA ATENCIÓN DE ESTUDIANTES CON NECESIDADES EDUCATIVAS ESPECIALES (SAANEE)"]
[]
[null,null,null,"401. ¿FUNCIONA EL SERVICIO DE APOYO Y ASESORAMIENTO DE LAS NECESIDADES EDUCATIVAS ESPECIALES (SAANEE) EN EL CEBE?"]
[]
[null,null,null,"Sí  ",null," No  ",null,"Pase a la página 14, FORTALECIMIENTO DE LA GESTIÓN"]
[]
[null,null,null,"402. ¿QUE ACTIVIDADES REALIZA EL SERVICIOS DE APOYO Y ASESORAMIENTO PARA LA ATENCIÓN DE LAS NECESIDADES EDUCATIVAS ESPECIALES (SAANEE)?"]
[null,null,null,null,"Marque con un aspa “X” uno o más casilleros"]
[]
[null,null,null,null,null,"Asesoramiento en la elaboración de los instrumentos de gestión del CEBE."]
[null,null,null,null,null,"Asesoramiento en la elaboración de los instrumentos de gestión de las II.EE. atendidas a la luz del enfoque inclusivo."]
[null,null,null,null,null,"Acompañamiento en el proceso de matrícula."]
[null,null,null,null,null,"Orientación para la elaboración de la evaluación psicopedagógica."]
[null,null,null,null,null,"Orientación para la elaboración del informe psicopedagógico y Plan Educativo Personalizado."]
[null,null,null,null,null,"Asesora en la elaboración de adaptaciones curriculares, pedagógicas y de acceso."]
[null,null,null,null,null,"Asesora en la elaboración de materiales educativos."]
[null,null,null,null,null,"Talleres de sensibilización y capacitación con los docentes."]
[null,null,null,null,null,"Articula y asesora a los coordinadores de tutoría y orientación educativa y con el coordinador/responsable de inclusión, sobre el trabajo …"]
[]
[null,null,null,"403. ¿TIENE SERVICIOS EDUCATIVOS INCLUSIVOS, ATENDIDOS POR EL SAANEE?"]
[]
[null,null,null,"Sí  ",null," No  ",null,"Pase a la página 14, FORTALECIMIENTO DE LA GESTIÓN"]
["SALTO"]
[]
[{"$f":"CONCATENATE(G11,G28)","v":""},null,null,"ANOTE LA INFORMACIÓN CORRESPONDIENTE A LOS SERVICIOS EDUCATIVOS INCLUSIVOS ATENDIDOS POR EL SAANEE"]
[]
[null,null,"Nº","CÓDIGO\nMODULAR",null,"NOMBRE DEL SERVICIO/NIVEL EDUCATIVO","NIVEL EDUCATIVO",null,"DISTRITO","¿Cuántos docentes apoyó o asesoró para la atención de estudiantes con NEE?","Nº de estudiantes identificados para su atención","Discapacidad Intelectual",null,null,"Discapacidad Auditiva",null,"Discapacidad Visual",null,"Discapa- cidad Física o Motora","Transtorno del Espectro Autista (TEA)",null,null,"Sordo ceguera","Multi-\ndiscapa cidad\n(MDE)","Otra discapacidad u Otra Condición"]
[{"$f":"SUM(A35:A104)","v":0},null,null,null,null,null,null,null,null,null,null,"RM Leve","RM Moderado","Severo","Hipoacusia","Sordera Total","Baja\nVisión","Ceguera",null,"Apoyo (Nivel 1)","Apoyo notable (Nivel 2)","Apoyo muy notable (Nivel 3)"]
[{"$f":"IF(AND(D35<>\"\",F35<>\"\",G35<>\"\",I35<>\"\"),C35,0)","v":0},null,1,null,null,null,null,null,null,null,{"$f":"SUM(L35:Y35)","v":0}]
[{"$f":"IF(AND(D36<>\"\",F36<>\"\",G36<>\"\",I36<>\"\"),C36,0)","v":0},null,2,null,null,null,null,null,null,null,{"$f":"SUM(L36:Y36)","v":0}]
[0,null,3,null,null,null,null,null,null,null,{"$f":"SUM(L37:Y37)","v":0}]
[0,null,4,null,null,null,null,null,null,null,0]
[0,null,5,null,null,null,null,null,null,null,0]
[0,null,6,null,null,null,null,null,null,null,0]
[0,null,7,null,null,null,null,null,null,null,0]
[0,null,8,null,null,null,null,null,null,null,0]
[0,null,9,null,null,null,null,null,null,null,0]
[0,null,10,null,null,null,null,null,null,null,0]
[0,null,11,null,null,null,null,null,null,null,0]
[0,null,12,null,null,null,null,null,null,null,0]
[0,null,13,null,null,null,null,null,null,null,0]
[0,null,14,null,null,null,null,null,null,null,0]
[0,null,15,null,null,null,null,null,null,null,0]
[0,null,16,null,null,null,null,null,null,null,0]
[0,null,17,null,null,null,null,null,null,null,0]
[0,null,18,null,null,null,null,null,null,null,0]
[0,null,19,null,null,null,null,null,null,null,0]
[0,null,20,null,null,null,null,null,null,null,0]
[0,null,21,null,null,null,null,null,null,null,0]
[0,null,22,null,null,null,null,null,null,null,0]
[0,null,23,null,null,null,null,null,null,null,0]
[0,null,24,null,null,null,null,null,null,null,0]
[0,null,25,null,null,null,null,null,null,null,0]
[0,null,26,null,null,null,null,null,null,null,0]
[0,null,27,null,null,null,null,null,null,null,0]
[0,null,28,null,null,null,null,null,null,null,0]
[0,null,29,null,null,null,null,null,null,null,0]
[0,null,30,null,null,null,null,null,null,null,0]
[0,null,31,null,null,null,null,null,null,null,0]
[0,null,32,null,null,null,null,null,null,null,0]
[0,null,33,null,null,null,null,null,null,null,0]
[0,null,34,null,null,null,null,null,null,null,0]
[0,null,35,null,null,null,null,null,null,null,0]
[0,null,36,null,null,null,null,null,null,null,0]
[0,null,37,null,null,null,null,null,null,null,0]
[0,null,38,null,null,null,null,null,null,null,0]
[0,null,39,null,null,null,null,null,null,null,0]
[0,null,40,null,null,null,null,null,null,null,0]
[0,null,41,null,null,null,null,null,null,null,0]
[0,null,42,null,null,null,null,null,null,null,0]
[0,null,43,null,null,null,null,null,null,null,0]
[0,null,44,null,null,null,null,null,null,null,0]
[0,null,45,null,null,null,null,null,null,null,0]
[0,null,46,null,null,null,null,null,null,null,0]
[0,null,47,null,null,null,null,null,null,null,0]
[0,null,48,null,null,null,null,null,null,null,0]
[0,null,49,null,null,null,null,null,null,null,0]
[0,null,50,null,null,null,null,null,null,null,0]
[0,null,51,null,null,null,null,null,null,null,0]
[0,null,52,null,null,null,null,null,null,null,0]
[0,null,53,null,null,null,null,null,null,null,0]
[0,null,54,null,null,null,null,null,null,null,0]
[0,null,55,null,null,null,null,null,null,null,0]
[0,null,56,null,null,null,null,null,null,null,0]
[0,null,57,null,null,null,null,null,null,null,0]
[0,null,58,null,null,null,null,null,null,null,0]
[0,null,59,null,null,null,null,null,null,null,0]
[0,null,60,null,null,null,null,null,null,null,0]
[0,null,61,null,null,null,null,null,null,null,0]
[0,null,62,null,null,null,null,null,null,null,0]
[0,null,63,null,null,null,null,null,null,null,0]
[0,null,64,null,null,null,null,null,null,null,0]
[0,null,65,null,null,null,null,null,null,null,0]
[{"$f":"IF(AND(D100<>\"\",F100<>\"\",G100<>\"\",I100<>\"\"),C100,0)","v":0},null,66,null,null,null,null,null,null,null,0]
[0,null,67,null,null,null,null,null,null,null,{"$f":"SUM(L101:Y101)","v":0}]
[0,null,68,null,null,null,null,null,null,null,0]
[0,null,69,null,null,null,null,null,null,null,0]
[0,null,70,null,null,null,null,null,null,null,{"$f":"SUM(L104:Y104)","v":0}]
[]
[]
[]
["Nivel"]
["A1: Inicial Cuna"]
["A2: Inicial Jardín"]
["A3: Inicial Cuna-Jardín"]
["A5: Inicial No Escolarizado"]
["B0: EBR - Primaria"]
["F0: EBR - Secundaria"]
["D1: EBA - Inicial e Intermedio"]
["D2: EBA - Avanzado"]
["E0: EBE - PRITE"]
["E1: EBE - Inicial"]
["E2: EBE - Primaria"]
["K0: IES Pedagógica"]
["P0: EES Pedagógica"]
["T0: IES Tecnológica"]
["S0: EES Tecnológica"]
["M0: ESF Artística"]
["L0: ETP - CETPRO"]

{"sheet":"C500","index":5,"n_rows":179,"n_cols":22,"rows_kept":179,"cut":false,"hidden":false,"merged":[[178,16,178,20],[106,4,106,8],[121,16,121,19],[159,8,159,9],[160,8,160,9],[161,8,161,9],[162,8,162,9],[171,7,172,10],[175,8,175,10],[176,8,176,10],[177,8,177,10],[153,5,154,7],[155,8,157,9],[158,8,158,9],[153,8,154,11],[171,2,174,6],[173,7,174,7],[173,9,174,10],[162,3,162,4],[153,2,158,4],[108,16,108,19],[160,16,160,20],[140,17,140,19],[140,20,140,21],[105,15,105,18],[134,6,136,6],[134,14,134,19],[76,20,76,21],[72,18,72,20],[76,17,76,19],[37,2,38,3],[70,20,70,21],[155,5,157,5],[139,8,139,9],[140,8,140,9],[141,8,141,9],[142,8,142,9],[155,6,158,6],[155,7,157,7],[50,2,54,3],[50,5,52,9],[50,10,52,10],[53,5,54,9],[53,10,54,10],[155,11,157,11],[72,6,72,10],[41,16,41,19],[60,19,60,21],[130,13,130,15],[130,16,130,17],[130,19,130,20],[142,3,142,4],[155,14,155,19],[115,14,115,16],[115,17,115,18],[115,19,115,20],[133,2,136,4],[133,5,133,10],[134,5,136,5],[134,7,136,7],[134,8,136,9],[134,10,136,10],[137,8,137,9],[138,8,138,9],[155,10,157,10],[119,3,119,8],[125,5,125,9],[2,5,2,20],[1,5,1,20],[43,5,44,9],[43,10,44,10],[20,20,21,20],[12,20,13,20],[14,20,15,20],[16,20,17,20],[18,20,19,20],[6,1,6,22],[11,13,11,14],[11,15,11,17],[11,18,11,19],[22,2,22,3],[22,4,22,9],[23,2,30,3],[23,5,24,9],[23,10,24,10],[25,5,26,9],[25,10,26,10],[27,5,28,9],[27,10,28,10],[35,2,36,3],[29,5,30,9],[29,10,30,10],[39,10,40,10],[22,20,24,20],[31,2,34,3],[31,5,32,9],[31,10,32,10],[39,2,49,3],[39,5,40,9],[48,5,49,9],[48,10,49,10],[45,5,45,9],[42,5,42,9],[46,5,47,9],[46,10,47,10],[48,16,48,20]]}
[]
[null,null,null,null,null,"CENSO EDUCATIVO 2023"]
[null,null,null,null,null,"MATRÍCULA, DOCENTES Y RECURSOS"]
[]
[]
[]
[null,"500. FORTALECIMIENTO DE LA GESTIÓN"]
[]
[null,"501. ESTE NIVEL/SERVICIO EDUCATIVO ¿COORDINA ALGUNA ACCIÓN CON EL",null,null,null,null,null,null,null,null,null,null,"504. SOBRE LA GESTIÓN DEL RIESGO DE DESASTRES Y LA SEGURIDAD EN ESTE"]
[null,null,"GOBIERNO LOCAL (DISTRITAL O PROVINCIAL) PARA MEJORAR LA",null,null,null,null,null,null,null,null,null,null,"NIVEL/ SERVICIO EDUCATIVO, ATIENDA LAS SIGUIENTES PREGUNTAS:"]
[null,null,"PRESTACIÓN DEL SERVICIO EDUCATIVO?"]
[null,null,null,null,null,null,null,null,null,null,null,null,{"$f":"SUM(M13:M25)","v":0},null,null,"PREGUNTA",null,null,null,null,"RESPUESTA"]
[null,"1: Siempre",null,"Sí    ",null,null,{"$f":"CONCATENATE(E13,I13)","v":""},"No  ",null,null,"Pase a la",null,{"$f":"IF(U13<>\"\",1,0)","v":0},"¿Incorpora la Gestión del Riesgo de Desastres en los instrumentos de"]
[null,"2: Casi Siempre",null,null,null,null,null,null,null,null,"pregunta 503.",null,null,"Gestión y Planificación Curricular para el desarrollo de una cultura de …"]
[null,"3: A Veces",null,null,null,null,null,null,null,null,null,null,{"$f":"IF(U15<>\"\",1,0)","v":0},"¿El Plan de Gestión de Riesgo de Desastres contiene acciones con"]
[null,"4: Casi Nunca",null,null,null,"Con Municipalidad Distrital",null,null,null,null,null,null,null,"enfásis en la contingencia ante la emergencia sanitaria por Covid19?"]
[null,"5: Nunca",null,null,null,"Con Municipalidad Provincial",null,null,null,null,null,null,{"$f":"IF(U17<>\"\",1,0)","v":0},"Las zonas seguras para el desplazamiento de los miembros de la comu-"]
[null,null,null,null,null,"Con ambas",null,null,null,null,null,null,null,"nidad educativa y las rutas de evacuación ¿se encuentran señalizadas?"]
[null,null,null,null,null,null,null,null,null,null,null,null,{"$f":"IF(U19<>\"\",1,0)","v":0},"¿Se cuenta con el mínimo de dispositivos de seguridad"]
[null,"502. FRECUENCIA DE LA ACCION QUE AYUDA EL GOBIERNO LOCAL PARA",null,null,null,null,null,null,null,null,null,null,null,"para situaciones de emergencia y desastres?"]
[null,null,"MEJORAR LA PRESTACIÓN DEL SERVICIO",null,null,null,null,null,null,null,null,null,{"$f":"IF(U21<>\"\",1,0)","v":0},"¿Fomenta la participación, compromiso y responsabilidad"]
[null,null,null,null,null,null,null,null,null,null,null,null,null,"sobre la Gestión del Riesgo de Desastres en la comunidad educativa?"]
[null,{"$f":"SUM(B24:B55)","v":0},"COMPONENTE",null,"ACCIÓN",null,null,null,null,null,"FRECUENCIA",null,{"$f":"IF(U23<>\"\",1,0)","v":0},"¿Desarrolla actividades de soporte socioemcional como el autocuidado,"]
[null,{"$f":"IF(K24<>\"\",1,0)","v":0},"Infraestructura",null,"01","Proyecto de inversión pública para el mejoramiento o ampliación del local escolar",null,null,null,null,null,null,null,"la autoprotección y la resilencia en la comunidad educativa como"]
[null,null,null,null,null,null,null,null,null,null,null,null,null,"respuesta ante situaciones de emergencias y desastres?"]
[null,{"$f":"IF(K26<>\"\",1,0)","v":0},null,null,"02","Apoyo y asistencia técnica para el uso de recursos de mantenimiento preventivo",null,null,null,null,null,null,null,null,null,null,null,null,null,null,{"$f":"COUNTIF(U13:U25,\"SI\")+COUNTIF(U13:U25,\"NO\")","v":0}]
[]
[null,{"$f":"IF(K28<>\"\",1,0)","v":0},null,null,"03","Gestiones para el acceso a servicios básicos de IIEE",null,null,null,null,null,null,"505. EN ESTE NIVEL/SERVICIO EDUCATIVO, ¿SE CUENTA CON PERSONAL QUE"]
[null,null,null,null,null,null,null,null,null,null,null,null,null,"SE ENCUENTRE DENTRO DEL GRUPO DE RIESGO DE LA COVID19 SEGÚN LO"]
[null,{"$f":"IF(K30<>\"\",1,0)","v":0},null,null,"04","Adquisición de mobiliario y equipamiento para la IIEE",null,null,null,null,null,null,null,"DEFINIDO POR EL NUMERAL 6.1.17 DE LA RM N° 972-2020-MINSA"]
[]
[null,{"$f":"IF(K32<>\"\",1,0)","v":0},"Aprendizajes",null,"05","Proyecto de inversión pública para la mejora de los aprendizajes",null,null,null,null,null,null,null,"Sí    ",null,null,null,"No  "]
[]
[null,{"$f":"IF(K34<>\"\",1,0)","v":0},null,null,"06","Programas de reforzamiento escolar",null,null,null,null,null,null,null,null,null,"Indique la cantidad de personal del grupo de riesgo:"]
[null,0,null,null,"07","Apoyo con material educativo"]
[null,0,"Docentes",null,"08","Contratación de docentes",null,null,null,null,null,null,null,null,"Directivos y docentes:"]
[null,0,null,null,"09","Talleres o cursos de capacitación",null,null,null,null,null,null,null,null,"Administrativos y No docentes:"]
[null,0,"No Docentes",null,"10","Contratación de no docentes"]
[null,0,null,null,"11","Talleres o cursos de capacitación",null,null,null,null,null,null,"506. ¿CUÁL ES LA PRIMERA PALABRA QUE SE LE VIENE A LA MENTE CUANDO"]
[null,0,"Gestión",null,"12","Articulación local con actores públicos y privados a nivel local",null,null,null,null,null,null,null,"PIENSA O ESCUCHA ‘’MINISTERIO DE EDUCACIÓN’’"]
[]
[null,{"$f":"IF(K42<>\"\",1,0)","v":0},null,null,"13","Atención de casos en DEMUNA",null,null,null,null,null,null,null,"Escriba solo una palabra"]
[null,{"$f":"IF(K43<>\"\",1,0)","v":0},null,null,"14","Articulación con UGEL y DRE de su ámbito"]
[null,{"$f":"IF(K44<>\"\",1,0)","v":0},null,null,"15","Gestiones para la instalación de servicios básicos de conectividad",null,null,null,null,null,null,"507. ¿CON CUÁL DE LOS SIGUIENTES LEMAS O FRASES ASOCIA AL MINEDU?"]
[]
[null,{"$f":"IF(K46<>\"\",1,0)","v":0},null,null,"16","Apoyo con alimentación para estudiantes",null,null,null,null,null,null,null,null,null,"Mejor educación, mejores peruanos"]
[null,{"$f":"IF(K47<>\"\",1,0)","v":0},null,null,"17","Vivienda y alimentación para docentes (zonas rurales, fronteras, etc)",null,null,null,null,null,null,null,null,null,"La educación no para"]
[null,null,null,null,null,null,null,null,null,null,null,null,null,null,null,"No asocio un lema específico al Minedu"]
[null,{"$f":"IF(K49<>\"\",1,0)","v":0},null,null,"18","Apoyo con movilidad local para estudiantes y docentes",null,null,null,null,null,null,null,null,null,"Otro"]
[]
[null,{"$f":"IF(K51<>\"\",1,0)","v":0},"Recuperación",null,"19","Promoción de acciones comunitarias para identificación de estudiantes que interrumpen estudios",null,null,null,null,null,null,"508. ¿CON QUÉ EMOCIONES ASOCIA CON EL MINEDU?"]
[null,null,null,null,null,null,null,null,null,null,null,null,null,null,null,"Positivas"]
[null,null,null,null,null,null,null,null,null,null,null,null,null,null,null,"Neutra"]
[null,{"$f":"IF(K54<>\"\",1,0)","v":0},null,null,"20","Impulso del registro nominal de estudiantes en Alerta Escuela por parte de directores de II.EE",null,null,null,null,null,null,null,null,null,"Negativas"]
[]
[null,null,null,null,null,null,null,null,null,null,{"$f":"COUNTIF(K24:K55,\"5: Nunca\")","v":0},null,"509. ¿QUÉ CANAL DE COMUNICACIÓN UTILIZA PARA INFORMARSE SOBRE LAS"]
[null,"503. ¿iNCORPORA LA SEGURIDAD Y DEFENSA NACIONAL EN LOS INSTRUMENTOS",null,null,null,null,null,null,null,null,null,null,null,"LAS NOVEDADES DEL MINEDU?"]
[null,null,"DE GESTIÓN Y PLANIFICACIÓN CURRICULAR PARA EL DESARROLLO DE UNA",null,null,null,null,null,null,null,null,null,null,null,null,"SIAGIE",null,null,"Programas radiales"]
[null,null,"CULTURA DE PAZ, Y FORTALECIMIENTO DE LA IDENTIDAD NACIONAL?",null,null,null,null,null,null,null,null,null,null,null,null,"Redes sociales",null,null,"Mensajes de texto"]
[null,null,null,null,null,null,null,null,null,null,null,null,null,null,null,"Portales del Minedu",null,null,"Correo electrónico"]
[null,null,null,"Sí    ",null,null,null,"No  ",null,null,null,null,null,null,null,"Programas televisivos",null,null,"Otro"]
[]
[]
[null,"510. DURANTE EL 2022 Y HASTA LA FECHA DEL CENSO 2023, ¿A TRAVÉS DE QUÉ",null,null,null,null,null,null,null,null,null,null,"515. EL SERVICIO/NIVEL EDUCATIVO, ¿CUENTA CON LA BRIGADA DE EDUCACIÓN"]
[null,null,"MEDIO RECIBIÓ LA CAPACITACIÓN EL PERSONAL AUXILIAR DE EDUCACIÓN?",null,null,null,null,null,null,null,null,null,null,"AMBIENTAL Y GESTIÓN DE RIESGO DE DESASTRES?"]
[null,null,"Marque con una “X”, una o más opciones"]
[null,null,null,"Perueduca, cursos específicos para auxiliares ",null,null,null,null,null,null,null,null,null,"Sí  ",null,null,null,"No",null,null,"Pase a la pregunta 517"]
[null,null,null,"Perueduca, cursos para la comunidad educativa"]
[null,null,null,"Mi Institución Educativa"]
[null,null,null,"Otra UGEL",null,null,null,null,null,null,null,null,null,null,null,"Documento que lo aprueba",null,null,null,"Resolución"]
[null,null,null,"Mi UGEL ",null,null,null,null,null,null,null,null,null,null,null,null,null,null,null,"Otro"]
[null,null,null,"DRE"]
[null,null,null,"Otras instituciones ",null,null,null,null,null,null,null,null,null,null,null,"Número del Documento"]
[null,null,null,"No cuento con personal auxiliar de educación"]
[null,null,null,"El personal auxiliar de educación no recibió capacitación",null,null,null,null,null,null,null,null,null,null,null,null,null,"Desde",null,null,"Hasta"]
[null,null,null,null,null,null,null,null,null,null,null,null,null,null,null,"Vigencia de la brigada",null,null,"DD/MM/AAAA",null,"DD/MM/AAAA"]
[null,"511. DURANTE EL ÚLTIMO MES, EN PROMEDIO, ¿CUÁNTAS HORAS SEMANALES,"]
[null,null,"ADICIONALES A SU JORNADA LABORAL, USTED CONSIDERA QUE HA DESTINADO"]
[null,null,"PARA REALIZAR ACTIVIDADES RELACIONADAS A SU TRABAJO COMO DIRECTOR?",null,null,null,null,null,null,null,null,null,"516. EN ESTE SERVICIO/NIVEL EDUCATIVO, ¿LOS INTEGRANTES DE LA BRIGADA DE"]
[null,null,null,null,null,null,null,null,null,null,null,null,null,"EDUCACIÓN AMBIENTAL Y GESTIÓN DE RIESGO DE DESASTRES HAN SIDO CAPACITADOS"]
[null,null,null,"Horas Semanales adicionales",null,null,null,null,null,null,null,null,null,"ANTE SITUACIONES DE EMERGENCIA O DESASTRE?"]
[]
[null,"512. ¿CUÁNTAS HORAS DE EDUCACIÓN FÍSICA SE DICTAN A LA SEMANA EN EL",null,null,null,null,null,null,null,null,null,null,null,"Sí  ",null,null,null,"No"]
[null,null,"SERVICIO EDUCATIVO?"]
[null,null,null,null,null,null,null,null,null,null,null,null,null,null,null,"N° de integrantes que conforma la brigada"]
[null,null,null,"Horas Semanales",null,null,null,null,null,null,null,null,null,null,null,"N° de integrantes capacitados de dicha brigada:"]
[null,null,null,null,null,null,null,null,null,null,null,null,null,null,null,"Entidad que capacitó:"]
[null,"513. SEÑOR(A) DIRECTOR(A), ¿CUÁL CONSIDERA USTED COMO PRINCIPAL TEMA",null,null,null,null,null,null,null,null,null,null,null,null,null,null,null,null,null,"DRE/GRE"]
[null,null,"QUE REQUIERE COMO CAPACITACIÓN EL PERSONAL AUXILIAR DE EDUCACIÓN,",null,null,null,null,null,null,null,null,null,null,null,null,null,null,null,null,"UGEL"]
[null,null,"PARA MEJORAR SU DESEMPEÑO?"]
[null,null,null,null,null,null,null,null,null,null,null,null,"517. EN ESTE SERVICIO/NIVEL EDUCATIVO, ¿EL RESPONSABLE DE GESTIÓN DE"]
[null,null,"Marque con una “X”, una o más opciones",null,null,null,null,null,null,null,null,null,null,"RIESGO DE DESASTRES HA SIDO CAPACITADO PARA EL DESARROLLO DE SUS ROLES?"]
[null,null,null,"Habilidades blandas (inteligencia emocional, comunicación asertiva, …"]
[null,null,null,"Habilidades duras (TICs, primeros auxilios, uso y peligros de internet, etc",null,null,null,null,null,null,null,null,null,"Sí  ",null,null,null,"No"]
[null,null,null,"Relación con los estudiantes (el juego, soporte socioemocional, …"]
[null,null,null,"No cuento con personal auxiliar de educación"]
[null,null,null,null,null,null,null,null,null,null,null,null,null,null,null,"Entidad que capacitó:",null,null,null,"DRE/GRE"]
[null,"514. SEÑOR(A) DIRECTOR(A), DURANTE EL 2022, ¿EL PERSONAL AUXILIAR DE",null,null,null,null,null,null,null,null,null,null,null,null,null,null,null,null,null,"UGEL"]
[null,null,"EDUCACIÓN DESEMPEÑÓ O DESEMPEÑA OTRAS LABORES ADICIONALES A SU"]
[null,null,"ROL COMO AUXILIAR DE EDUCACIÓN?",null,null,null,null,null,null,null,null,null,"518. EN EL AÑO 2023, ¿ESTE SERVICIO/NIVEL EDUCATIVO HA REALIZADO O"]
[null,null,null,null,null,null,null,null,null,null,null,null,null,"PARTICIPADO EN ACCIONES DE SEGURIDAD Y DEFENSA NACIONAL?"]
[null,null,"Marque con una “X”, una o más opciones"]
[null,null,null,"No realizó/realiza otras labores adicionales en la IE ",null,null,null,null,null,null,null,null,null,"Sí  ",null,null,null,"No"]
[null,null,null,"Trabaja como docente"]
[null,null,null,"Trabaja como personal administrativo en la IE",null,null,null,null,null,null,null,null,null,null,null,"Marque todas las opciones implementadas"]
[null,null,null,"Trabaja en otra IE ",null,null,null,null,null,null,null,null,null,null,null,"Actividad",null,null,null,null,"Marcar con “X”"]
[null,null,null,"Otro",null,null,null,null,null,null,null,null,null,null,null,"Capacitaciones"]
[null,null,null,"No cuento con personal auxiliar de educación ",null,null,null,null,null,null,null,null,null,null,null,"Utilizado una estrategía\ncomunicacional"]
[null,null,null,null,null,null,null,null,null,null,null,null,null,null,null,"Otros"]
[]
[]
[null,"519. EN EL AÑO 2023, ¿ESTE SERVICIO/NIVEL EDUCATIVO HA INCORPORADO",null,null,null,null,null,null,null,null,null,null,"522. EN EL AÑO 2023 ¿CUÁLES SON LOS EQUIPOS Y SERVICIOS INFORMÁTICOS QUE"]
[null,null,"ACCIONES DE GESTIÓN DEL RIESGO DE EMERGENCIAS Y DESASTRES EN SUS",null,null,null,null,null,null,null,null,null,null,"CUENTA ESTE SERVICIO/NIVEL EDUCATIVO PARA REPORTAR LAS EMERGENCIAS, "]
[null,null,"INSTRUMENTOS DE GESTIÓN VIGENTES?",null,null,null,null,null,null,null,null,null,null,"DESASTRES Y/O PELIGRO INMINENTE?"]
[]
[null,null,null,"Sí    ","X",null,null,"No  ","",null,null,null,null,null,"Equipos",null,null,null,null,"Marcar con \"X\""]
[null,null,null,null,null,null,null,null,null,null,null,null,null,null,"PC"]
[null,null,null,null,null,"Precise los documentos de gestión",null,null,null,null,null,null,null,null,"Tablet"]
[null,null,null,null,null,null,null,null,null,null,null,null,null,null,"Equipos Móviles"]
[null,null,null,"Documentos de Gestión",null,null,null,null,null,null,"Marcar con \"X\"",null,null,null,"Internet"]
[null,null,null,"Proyecto Educativo Institucional (PEI)",null,null,null,null,null,null,null,null,null,null,"No se cuenta"]
[null,null,null,"Plan Anual de Trabajo (PAT)",null,null,null,null,null,null,null,null,null,null,"Otros"]
[null,null,null,"Proyecto Currícular Institucional (PCI)",null,""]
[null,null,null,"Reglamento Interno (RI)",null,null,null,null,null,null,null,null,"523. EN EL AÑO 2023, ANTE LA DETECCIÓN DEL PELIGRO INMINENTE, EMERGENCIA"]
[null,null,null,"Documento de gestión",null,null,null,null,null,null,null,null,null,"O DESASTRE ¿ESTE SERVICIO/NIVEL EDUCATIVO REALIZA LA ALERTA AL ESPACIO"]
[null,null,null,"Otros",null,null,null,null,null,null,null,null,null,"DE MONITOREO Y SEGUIMIENTO SECTORIAL (EMSS) DE LA UGEL?"]
[]
[null,"520. EN EL AÑO 2023 ¿LOS MIEMBROS DE ESTE SERVICIO/NIVEL EDUCATIVO HAN",null,null,null,null,null,null,null,null,null,null,null,"Sí    ","",null,null,"No  "]
[null,null,"SIDO CAPACITADOS EN MATERIA DE GESTIÓN INTEGRAL DEL RIESGO DE ",null,null,null,null,null,null,null,null,null,null,null,null,null,null,null,null,"¿Por qué?"]
[null,null,"EMERGENCIAS Y DESASTRES?"]
[null,null,null,null,null,null,null,null,null,null,null,null,null,"Items",null,null,null,null,null,"Marcar con \"X\""]
[null,null,null,"Sí    ",null,null,null,"No  ",null,null,null,null,null,"No se tuvo emergencia en territorio"]
[null,null,null,null,null,null,null,null,null,null,null,null,null,"No se cuenta con los instrumentos y/o herramientas"]
[null,null,"Tipo de Capacitación",null,null,"Cantidad de personas capacitadas",null,null,null,null,null,null,null,"No se conoce el procedimiento"]
[null,null,null,null,null,"N° de Directo- res","N° de Docentes","N° de No Docentes","N° de Administra- tivos",null,"N° de capacitados CEA y GRD",null,null,"Otros",""]
[]
[]
[null,"01","Curso",null,null,null,null,null,null,null,null,{"$f":"SUM(F138:K138)","v":0},"524. EN EL AÑO 2023, ¿ESTE SERVICIO/NIVEL EDUCATIVO PARTICIPÓ EN LOS "]
[null,"02","Taller",null,null,null,null,null,null,null,null,{"$f":"SUM(F139:K139)","v":0},null,"SIMULACROS CONVOCADOS POR MINEDU Y/O INDECI?"]
[null,"03","Charla",null,null,null,null,null,null,null,null,0]
[null,"04","Seminario",null,null,null,null,null,null,null,null,0,null,"Sí    ",null,null,null,"Items",null,null,"Marcar con \"X\""]
[null,"05","Webinar",null,null,null,null,null,null,null,null,0,null,null,null,null,null,"Primer simulacro"]
[null,"06","Otro",null,null,null,null,null,null,null,null,0,null,null,null,null,null,"Segundo simulacro"]
[null,null,null,null,null,null,null,null,null,null,{"$f":"SUM(F138:K143)","v":0},null,null,"No  ",null,null,null,"Tercer simulacro"]
[null,"521. ESTE SERVICIO/NIVEL EDUCATIVO ¿CUENTA CON ALGUNA EXPERIENCIA",null,null,null,null,null,null,null,null,null,null,null,null,null,null,null,"Cuarto simulacro"]
[null,null,"EXITOSA O BUENA PRÁCTIVA DOCENTE Y/O GESTIÓN ESCOLAR ENMARCADAS EN"]
[null,null,"ALGUNA DE LAS LÍNEAS ESTRATÉGICAS?",null,null,null,null,null,null,null,null,null,"525. ¿ESTE SERVICIO/NIVEL EDUCATIVO, ¿HA RECIBIDO POR PARTE DE LA UGEL"]
[null,null,null,null,null,null,null,null,null,null,null,null,null,"ACCIONES DE COMUNICACIÓN PRESENCIAL O VIRTUAL PARA SENSIBILIZAR"]
[null,null,null,"Sí    ",null,null,null,"No  ",null,null,null,null,null,"A LA COMUNIDAD EDUCATIVA EN TEMAS DE GESTIÓN DEL RIESGO DE DESASTRES,"]
[null,null,null,null,null,null,null,null,null,null,null,null,null,"CAMBIO CLIMÁTICO Y/O SEGURIDAD Y DEFENSA NACIONAL?"]
[null,null,null,null,null,"Complete la tabla"]
[null,null,"Seleccione “Sí” o “No” para cada línea estratégica e ingrese los años según corresponda",null,null,null,null,null,null,null,null,null,null,"Sí    ",null,null,null,"No  "]
[]
[null,null,"Línea Estratégica",null,null,"Experiencia exitosa",null,null,"Buena práctica docente y/o \nGestión escolar",null,null,null,null,null,null,"Indique, ¿qué acciones implementó o recibió?"]
[]
[null,null,null,null,null,"¿Cuenta con experiencia exitosa?","Año de la experien cia exitosa","Se socializó con otras entidades","Cuenta con buena práctica?",null,"Año de la buena práctica","Se socializó con otras entidades",null,null,"Documentos de Gestión",null,null,null,null,null,null,"Marcar con \"X\"  "]
[null,null,null,null,null,null,null,null,null,null,null,null,null,null,"Afiches y/o díptico y/o tríptico"]
[null,null,null,null,null,null,null,null,null,null,null,null,null,null,"Carteles o murales"]
[null,null,null,null,null,"Sí - No",null,"Sí - No","Sí - No",null,null,"Sí - No",null,null,"Ferias estudiantiles"]
[null,"01","Gestión del Riesgo …",null,null,null,null,null,null,null,null,null,null,null,"Radionovela y/o audios y/o radioteatro y/o videos …"]
[null,"02","Adaptación al cambio …",null,null,null,null,null,null,null,null,null,null,null,"Otros"]
[null,"03","Seguridad y Defensa …"]
[null,"04","Otro",""]
[null,null,null,null,null,{"$f":"COUNTIF(F160:F163,\"SI\")+COUNTIF(F160:F163,\"NO\")","v":0},null,null,{"$f":"COUNTIF(I160:I163,\"SI\")+COUNTIF(I160:I163,\"NO\")","v":0}]
[]
[null,"526. ¿ESTE SERVICIO/NIVEL EDUCATIVO, ¿CUENTA CON EL APOYO DE ALIADOS",null,null,null,null,null,null,null,null,null,null,"527. EL SERVICIO/NIVEL EDUCATIVO QUE DIRIGE, ¿DURANTE EL PRESENTE AÑO HA RECIBIDO"]
[null,null,"ESTRATÉGICOS DE SU LOCALIDAD PARA ATENDER ALGUNO DE LOS SIGUIENTES TEMAS?",null,null,null,null,null,null,null,null,null,null,"O VIENE RECIBIENDO APOYO DE ALGUNA EMPRESA PRIVADA O DE ALGUNA ONG EN TEMAS DE"]
[null,null,null,null,null,null,null,null,null,null,null,null,null,"MEJORA DE INFRAESTRUCTURA, MOBILIARIO, EQUIPAMIENTO, CAPACITACIÓN U OTROS?"]
[null,null,"Seleccione “Si” o “No” para cada caso y detalle al principal aliado estratégico"]
[null,null,"según corresponda)",null,null,null,null,null,null,null,null,null,null,"Sí  ",null,null,null,"No",null,null,"Pase a la pregunta 601"]
[]
[null,null,"Temas por atender",null,null,null,null,"¿Cuenta con el apoyo de aliados estrategicos de su localidad?",null,null,null,null,"528. INDIQUE EL TIPO DE APOYO QUE HA RECIBIDO DE LA EMPRESA PRIVADA U ONG:"]
[]
[null,null,null,null,null,null,null,"Sí - No",null,"Mencione al principal aliado en cada caso",null,null,null,"Marque con una “X”, una o más opciones"]
[null,null,null,null,null,null,null,null,null,null,null,null,null,null,null,"Infraestructura"]
[null,null,"Gestión Integral del riesgo de emergencias",null,null,null,null,null,null,null,null,null,null,null,null,"Mobiliario"]
[null,null,"Adaptación al cambio climático",null,null,null,null,null,null,null,null,null,null,null,null,"Equipamiento"]
[null,null,"Seguridad y Defensa Nacional",null,null,null,null,null,null,null,null,null,null,null,null,"Capacitación"]
[null,null,null,null,null,null,null,{"$f":"COUNTIF(H176:H178,\"SI\")+COUNTIF(H176:H178,\"NO\")","v":0},null,null,null,null,null,null,null,"Otros"]

{"sheet":"C600","index":6,"n_rows":75,"n_cols":16,"rows_kept":75,"cut":false,"hidden":false,"merged":[[30,2,30,6],[30,7,30,9],[30,10,30,14],[30,15,30,17],[28,2,28,6],[28,7,28,9],[28,10,28,14],[28,15,28,17],[29,2,29,6],[29,7,29,9],[29,10,29,14],[29,15,29,17],[1,5,1,16],[22,2,22,17],[27,3,27,5],[27,7,27,9],[27,10,27,14],[27,15,27,17]]}
[]
[null,null,null,null,null,"CENSO EDUCATIVO 2023"]
[null,null,null,null,null,"MATRÍCULA, DOCENTES Y RECURSOS"]
[]
[]
[]
[null,"600. APRENDO EN CASA - MULTICANALES"]
[]
[null,"601. EN UN ESCENARIO DE EDUCACIÓN SEMIPRESENCIAL O REMOTA ¿CUÁL ES EL MEDIO DE COMUNICACIÓN PERTINENTE, QUE SEGÚN LAS CONDICIONES DE LA ZONA,"]
[null,null,"PERMITEN LA COMUNICACIÓN Y APRENDIZAJE DE LOS ESTUDIANTES?"]
[null,null,"Marque con una “X”, una o más opciones"]
[]
[null,null,null,"Llamadas telefónicas (celular)"]
[null,null,null,"Whatsapp (audios o vídeos)",null,null,null,null,""]
[null,null,null,"Facebook - Messenger"]
[null,null,null,"Videoconferencias (Meet, Zoom, Skype, etc)"]
[null,null,null,"Correo electrónico"]
[null,null,null,"Visitas domiciliarias"]
[]
[]
[]
[]
[]
[]
[]
[null,"DATOS DEL DIRECTOR/RESPONSABLE DEL LLENADO DE LA CÉDULA"]
[]
[null,null,null,"NOMBRES Y APELLIDOS",null,null,null,"CARGO",null,null,"CORREO ELECTRÓNICO",null,null,null,null,"TELÉFONO"]
[]
[]
[]
[]
[]
[]
[]
[]
["DIRECTOR(A)"]
["SUB DIRECTOR(A)"]
["DOCENTE"]
["COORDINADOR(A)"]
["ASESOR"]
["ADMINISTRATIVO"]
["ASISTENTE"]
["AUXILIAR"]
["SECRETARIA(O)"]
["ESTADÍSTICO"]
["ESPECIALISTA"]
["BIBLIOTECARIO"]
["CARE"]
["COMANDANTE PNP"]
["CONTADOR"]
["DAIP"]
["DIGITADOR(A)"]
["GERENTE"]
["JEFE ACADÉMICO"]
["JEFE ADMINISTRATIVO"]
["JEFE DE ÁREA"]
["JEFE DE LABORATORIO"]
["JEFE DE PERSONAL"]
["JEFE DE SEDE"]
["JEFE DE UNIDAD"]
["OFICINISTA"]
["OPERADOR DE SISTEMAS"]
["PERSONAL DE SERVICIO"]
["PROGRAMADOR"]
["PROMOTOR(A)"]
["PSICOLOGO"]
["REGISTRADOR(A)"]
["REPRESENTANTE LEGAL"]
["SOPORTE TECNOLOGICO"]
["TÉCNICO ADMINISTRATIVO"]
["TESORERO(A)"]
["TRABAJADOR SOCIAL"]
["TUTOR"]
["OTROS"]

{"sheet":"Enviar","index":7,"n_rows":9,"n_cols":4,"rows_kept":9,"cut":false,"hidden":false,"merged":[[0,1,0,4],[1,1,1,4]]}
[null,"CENSO EDUCATIVO 2023"]
[null,"MATRÍCULA, DOCENTES Y RECURSOS"]
[]
[]
[null,null,"Paso 1:","Realice el ENVÍO con su clave EOL."]
[]
[null,null,"Paso 2:","Una vez realizado el ENVÍO,  Revise su constancia de envio."]
[]
[null,null,"  ADVERTENCIA","ASEGÚRESE DE REGISTRAR TODA LA INFORMACIÓN DEL NIVEL INFORMANTE"]